Workbook

Sheet Start here
A1: Step-by-step instructions | J1: VisionSBA results: District overview
D3: Step 1: Provide spending and student categories | K3: Current average per-pupil spending across the district, in $ and %
D4: Enter up to five categories where schools are allocated money | K4: Baseline per-pupil allocation | N4: 5782.170365 | P4: 1
D5: for a student type - for instance, Poverty or Special Ed: | K5: Poverty increment | N5: 2988.08605 | P5: 0.5167758577
K6: ELL increment | N6: 1038.421031 | P6: 0.1795901825
D7: Poverty | K7: Special Ed increment | N7: 6895.084078 | P7: 1.192473352
D8: ELL
D9: Special Ed
K10: Based on each school's mix of students and the current district average allocations
K11: Ranked from most underfunded to most overfunded on a percentage basis
K12: School | N12: Current spending | P12: Dollars over (under) | R12: Percent of average
D13: Step 2: Enter district data | K13: Emerson Elementary | N13: 3111340.14 | P13: -789724.9442 | R13: -0.3036574347 | S13: 0.7975617102
D14: Fill in the "My data" sheet with student counts and dollar | K14: Seward Elementary | N14: 5709295 | P14: -1231404.227 | R14: -0.2661268383 | S14: 0.8225821078
D15: amounts for each school in the district. Then return here. | K15: Barton Open Elementary | N15: 4333134 | P15: -901434.5345 | R15: -0.2583119875 | S15: 0.8277920083
K16: Northrop Elementary | N16: 2916300.73 | P16: -563409.8083 | R16: -0.2428692569 | S16: 0.8380871621
D17: Step 3: Compare current spending to district average allocation | K17: Loring Elementary | N17: 2911703.22 | P17: -508852.912 | R17: -0.2231448158 | S17: 0.8512367895
K18: Windom School | N18: 2847254.84 | P18: -482447.8418 | R18: -0.2173382526 | S18: 0.8551078316
K19: Anthony Middle School | N19: 5804423 | P19: -961505.8532 | R19: -0.2131649343 | S19: 0.8578900438
K20: Nellie Stone Johnson Elementary | N20: 6625180.41 | P20: -1045970.36 | R20: -0.2045267506 | S20: 0.863648833
D21: Step 4: Create a custom student-based allocation model | K21: Hale Elementary | N21: 4001728 | P21: -583357.3252 | R21: -0.1908439921 | S21: 0.8727706719
K22: Whittier International | N22: 4957831 | P22: -715192.5206 | R22: -0.1891035313 | S22: 0.8739309791
K23: Burroughs Elementary | N23: 4714966 | P23: -619765.582 | R23: -0.174263383 | S23: 0.8838244113
K24: Waite Park Elementary | N24: 3490419.76 | P24: -397197.4363 | R24: -0.1532548408 | S24: 0.8978301061
D25: Step 5: Print VisionSBA results | K25: Bryn Mawr Elementary | N25: 3635876.51 | P25: -400594.9763 | R25: -0.1488657771 | S25: 0.9007561486
K26: Sheridan Elementary | N26: 5881192.21 | P26: -608397.5183 | R26: -0.140624649 | S26: 0.906250234
K27: Kenwood Elementary | N27: 3213884 | P27: -314525.7537 | R27: -0.1337114064 | S27: 0.9108590624
K28: Pillsbury Elementary | N28: 5602130.02 | P28: -543046.268 | R28: -0.1325542773 | S28: 0.9116304818
K29: Southwest Senior High | N29: 12075189 | P29: -1131169.523 | R29: -0.1284801016 | S29: 0.9143465989
K30: Marcy Open Elementary | N30: 4771661 | P30: -412315.7164 | R30: -0.1193048519 | S30: 0.920463432
K31: Ramsey Fine Arts Elementary | N31: 9277095 | P31: -789484.0195 | R31: -0.1176393715 | S31: 0.9215737523
K32: Anishinabe Academy | N32: 2988228.79 | P32: -219468.9741 | R32: -0.1026292018 | S32: 0.9315805321
K33: Lyndale Elementary | N33: 4347787.39 | P33: -296373.4682 | R33: -0.09572454873 | S33: 0.9361836342
K34: Field Elementary | N34: 3613100 | P34: -240336.4248 | R34: -0.09355406382 | S34: 0.9376306241
K35: Green Central Park Elementary | N35: 5275785.46 | P35: -285115.9654 | R35: -0.07690730611 | S35: 0.9487284626
K36: Armatage Elementary | N36: 3798766 | P36: -204902.4933 | R36: -0.07676802922 | S36: 0.9488213139
K37: Washburn Senior High | N37: 9455604 | P37: -392888.4536 | R37: -0.05983988749 | S37: 0.9601067417
K38: Sanford Middle | N38: 5603067 | P38: -162006.5809 | R38: -0.04215208496 | S38: 0.97189861
K39: Lake Harriet Upper School | N39: 4359710 | P39: -121453.1788 | R39: -0.04065457137 | S39: 0.9728969524
K40: Hall International | N40: 3924429.69 | P40: -92408.16752 | R40: -0.03450780345 | S40: 0.9769947977
K41: South Senior High | N41: 14761279 | P41: -335114.0006 | R41: -0.03329742415 | S41: 0.9778017172
K42: Andersen Community | N42: 11409139.46 | P42: -20314.65052 | R42: -0.002666091965 | S42: 0.9982226054
K43: Lk Nokomis Comm-Keewaydin | N43: 2632773 | P43: 9182.363649 | R43: 0.003499922405 | S43: 1.003499922
K44: Hiawatha Elementary | N44: 2670395 | P44: 41410.38469 | R44: 0.01575147471 | S44: 1.015751475
K45: Henry Senior High | N45: 10843291 | P45: 190253.8061 | R45: 0.01785911404 | S45: 1.017859114
K46: Jenny Lind Elementary | N46: 4588686.85 | P46: 106678.4007 | R46: 0.02380147247 | S46: 1.023801472
K47: Bancroft Elementary | N47: 5113094.64 | P47: 207015.1981 | R47: 0.04219564737 | S47: 1.042195647
K48: Lk Nokomis Comm-Wenonah | N48: 2505341 | P48: 103028.3398 | R48: 0.04288714849 | S48: 1.042887148
K49: Lucy Laney @ Cleveland Park | N49: 6540850.22 | P49: 306464.9088 | R49: 0.04915719731 | S49: 1.049157197
K50: Lake Harriet Lower Elementary | N50: 2692498 | P50: 137622.0015 | R50: 0.05386641134 | S50: 1.053866411
K51: Kenny Elementary | N51: 3094032 | P51: 160375.159 | R51: 0.05466732059 | S51: 1.054667321
K52: Anwatin Middle School | N52: 5689693 | P52: 395045.9446 | R52: 0.07461232835 | S52: 1.074612328
K53: Northeast Middle | N53: 5308927 | P53: 376313.9853 | R53: 0.07629100118 | S53: 1.076291001
K54: Pratt Elementary | N54: 1864967.51 | P54: 137956.9885 | R54: 0.07988196178 | S54: 1.079881962
K55: Jefferson Elementary | N55: 7377864.54 | P55: 569869.1284 | R55: 0.08370586259 | S55: 1.083705863
K56: Wellstone International High | N56: 1335614 | P56: 122445.5919 | R56: 0.1009304158 | S56: 1.100930416
K57: Sullivan Elementary | N57: 6602096.59 | P57: 606067.0877 | R57: 0.1010780697 | S57: 1.10107807
K58: Olson Middle | N58: 4173641 | P58: 493052.8765 | R58: 0.1339603509 | S58: 1.133960351
K59: Hmong International Academy | N59: 4743556.46 | P59: 600421.4579 | R59: 0.1449195978 | S59: 1.144919598
K60: Bethune Elementary | N60: 4590455.9 | P60: 655012.2873 | R60: 0.166439251 | S60: 1.166439251
K61: Dowling Elementary | N61: 4703209 | P61: 866545.1054 | R61: 0.2258590091 | S61: 1.225859009
K62: Edison Senior High | N62: 10907358 | P62: 2249533.921 | R62: 0.2598267071 | S62: 1.259826707
K63: Roosevelt Senior High | N63: 10316028 | P63: 2305577.932 | R63: 0.2878212724 | S63: 1.287821272
K64: SPAN | N64: 4053973.52 | P64: 1039705.113 | R64: 0.3449278475 | S64: 1.344927847
K65: Cityview Pam Magnet | N65: 3541557 | P65: 1626674.332 | R65: 0.8494903419 | S65: 1.849490342
K66: North Senior High | N66: 4357958 | P66: 2063927.165 | R66: 0.8996946044 | S66: 1.899694604

Sheet My data
A1: School name | B1: Total students | C1: =IF(Category1<>"",Category1&" students","LeaveBlank") -> Poverty students | D1: =IF(Category2<>"",Category2&" students","LeaveBlank") -> ELL students | E1: =IF(Category3<>"",Category3&" students","LeaveBlank") -> Special Ed students | F1: =IF(Category4<>"",Category4&" students","LeaveBlank") -> LeaveBlank | G1: =IF(Category5<>"",Category5&" students","LeaveBlank") -> LeaveBlank | H1: Total spending | I1: =IF(Category1<>"",Category1&" spending","LeaveBlank") -> Poverty spending | J1: =IF(Category2<>"",Category2&" spending","LeaveBlank") -> ELL spending | K1: =IF(Category3<>"",Category3&" spending","LeaveBlank") -> Special Ed spending | L1: =IF(Category4<>"",Category4&" spending","LeaveBlank") -> LeaveBlank | M1: =IF(Category5<>"",Category5&" spending","LeaveBlank") -> LeaveBlank
A2: Armatage Elementary | B2: 533 | C2: 134 | D2: 24 | E2: 72 | H2: 3798766 | I2: 138014 | K2: 660615.01
A3: Lake Harriet Lower Elementary | B3: 402 | C3: 17 | D3: 7 | E3: 25 | H3: 2692498 | I3: 3061 | K3: 250126.33
A4: Bancroft Elementary | B4: 485 | C4: 418 | D4: 197 | E4: 94 | H4: 5113094.64 | I4: 1399649.83 | J4: 220781 | K4: 841587.97
A5: Barton Open Elementary | B5: 735 | C5: 177 | D5: 87 | E5: 53 | H5: 4333134 | I5: 120891 | J5: 103676 | K5: 19173.54
A6: Bethune Elementary | B6: 352 | C6: 348 | D6: 25 | E6: 121 | H6: 4590455.9 | I6: 1138777.36 | K6: 1169171.52
A7: Burroughs Elementary | B7: 785 | C7: 110 | D7: 58 | E7: 59 | H7: 4714966 | I7: 65468 | J7: 63027 | K7: 339452.49
A8: Field Elementary | B8: 508 | C8: 129 | D8: 13 | E8: 75 | H8: 3613100 | I8: 108387 | K8: 201103.43
A9: Lake Harriet Upper School | B9: 668 | C9: 71 | D9: 13 | E9: 57 | H9: 4359710 | I9: 20256 | K9: 599666.7
A10: Hale Elementary | B10: 646 | C10: 112 | D10: 18 | E10: 72 | H10: 4001728 | I10: 64447 | K10: 382752.86
A11: Hiawatha Elementary | B11: 300 | C11: 176 | D11: 56 | E11: 45 | H11: 2670395 | I11: 467412.88 | J11: 118719 | K11: 383541.47
A12: Lk Nokomis Comm-Keewaydin | B12: 298 | C12: 167 | D12: 48 | E12: 51 | H12: 2632773 | I12: 396522.32 | J12: 71845 | K12: 387520.69
A13: Kenny Elementary | B13: 376 | C13: 138 | D13: 9 | E13: 49 | H13: 3094032 | I13: 272299.7 | K13: 633941.86
A14: Kenwood Elementary | B14: 451 | C14: 150 | D14: 30 | E14: 64 | H14: 3213884 | I14: 155012 | K14: 493281.62
A15: Loring Elementary | B15: 384 | C15: 260 | D15: 69 | E15: 51 | H15: 2911703.22 | I15: 865141.5 | J15: 61777 | K15: 0
A16: Lyndale Elementary | B16: 492 | C16: 372 | D16: 244 | E16: 63 | H16: 4347787.39 | I16: 1241834.52 | J16: 248102 | K16: 457195.42
A17: Jenny Lind Elementary | B17: 441 | C17: 393 | D17: 79 | E17: 98 | H17: 4588686.85 | I17: 1322150.68 | J17: 97911 | K17: 1000917.93
A18: Northrop Elementary | B18: 400 | C18: 230 | D18: 90 | E18: 56 | H18: 2916300.73 | I18: 645056.44 | J18: 160193 | K18: 319866.24
A19: Pillsbury Elementary | B19: 602 | C19: 528 | D19: 316 | E19: 110 | H19: 5602130.02 | I19: 1786775.36 | J19: 326241 | K19: 615876.02
A20: Pratt Elementary | B20: 177 | C20: 123 | D20: 58 | E20: 40 | H20: 1864967.51 | I20: 385512.39 | J20: 99328 | K20: 366254.15
A21: Seward Elementary | B21: 865 | C21: 430 | D21: 225 | E21: 61 | H21: 5709295 | I21: 893311.15 | J21: 250448 | K21: 4304.72
A22: Sheridan Elementary | B22: 644 | C22: 607 | D22: 140 | E22: 117 | H22: 5881192.21 | I22: 2048517.54 | J22: 133758 | K22: 334771.77
A23: Waite Park Elementary | B23: 445 | C23: 277 | D23: 97 | E23: 56 | H23: 3490419.76 | I23: 800759 | J23: 184761 | K23: 363664.81
A24: Lk Nokomis Comm-Wenonah | B24: 293 | C24: 155 | D24: 50 | E24: 28 | H24: 2505341 | I24: 400040 | J24: 84041 | K24: 286704.56
A25: Windom School | B25: 390 | C25: 204 | D25: 169 | E25: 42 | H25: 2847254.84 | I25: 655348.48 | J25: 233182 | K25: 0
A26: Ramsey Fine Arts Elementary | B26: 1039 | C26: 902 | D26: 450 | E26: 130 | H26: 9277095 | I26: 2630351.28 | J26: 352373 | K26: 820088.49
A27: Jefferson Elementary | B27: 626 | C27: 585 | D27: 318 | E27: 161 | H27: 7377864.54 | I27: 2017104.33 | J27: 371201 | K27: 1609096.24
A28: Dowling Elementary | B28: 490 | C28: 163 | D28: 59 | E28: 66 | H28: 4703209 | I28: 334980.85 | J28: 73639 | K28: 1099388.71
A29: Andersen Community | B29: 1072 | C29: 1056 | D29: 777 | E29: 184 | H29: 11409139.46 | I29: 3979935.97 | J29: 763772 | K29: 1164605.12
A30: Sullivan Elementary | B30: 565 | C30: 513 | D30: 229 | E30: 139 | H30: 6602096.59 | I30: 1773489.24 | J30: 158809 | K30: 1176676.97
A31: Anishinabe Academy | B31: 324 | C31: 312 | D31: 2 | E31: 58 | H31: 2988228.79 | I31: 1378042.35 | K31: 0
A32: Marcy Open Elementary | B32: 640 | C32: 281 | D32: 102 | E32: 78 | H32: 4771661 | I32: 485088.46 | J32: 141920 | K32: 750757.61
A33: Bryn Mawr Elementary | B33: 412 | C33: 334 | D33: 114 | E33: 78 | H33: 3635876.51 | I33: 1199993.57 | J33: 152129 | K33: 460329.47
A34: Green Central Park Elementary | B34: 540 | C34: 523 | D34: 352 | E34: 74 | H34: 5275785.46 | I34: 1840724.06 | J34: 352494 | K34: 0
A35: Emerson Elementary | B35: 419 | C35: 324 | D35: 239 | E35: 38 | H35: 3111340.14 | I35: 1102263.35 | J35: 303739 | K35: 0
A36: Lucy Laney @ Cleveland Park | B36: 608 | C36: 601 | D36: 19 | E36: 131 | H36: 6540850.22 | I36: 2004952.48 | K36: 819189.34
A37: Hall International | B37: 389 | C37: 349 | D37: 14 | E37: 103 | H37: 3924429.69 | I37: 1119426.03 | J37: 47747 | K37: 632549.17
A38: Nellie Stone Johnson Elementary | B38: 729 | C38: 710 | D38: 216 | E38: 161 | H38: 6625180.41 | I38: 2283242.53 | J38: 198340 | K38: 393043.83
A39: Whittier International | B39: 638 | C39: 407 | D39: 268 | E39: 71 | H39: 4957831 | I39: 1011331.51 | J39: 244952 | K39: 311983.1
A40: Cityview Pam Magnet | B40: 158 | C40: 156 | D40: 24 | E40: 74 | H40: 3541557 | I40: 1791837.97 | J40: 16800 | K40: 350194.67
A41: Hmong International Academy | B41: 390 | C41: 359 | D41: 254 | E41: 80 | H41: 4743556.46 | I41: 1276499.1 | J41: 345519 | K41: 1110218.41
A42: Anthony Middle School | B42: 866 | C42: 313 | D42: 89 | E42: 106 | H42: 5804423 | I42: 467628.24 | J42: 81610 | K42: 524481.29
A43: Anwatin Middle School | B43: 547 | C43: 434 | D43: 160 | E43: 97 | H43: 5689693 | I43: 1421552.38 | J43: 138577 | K43: 724079.43
A44: SPAN | B44: 191 | C44: 188 | D44: 30 | E44: 191 | H44: 4053973.52 | I44: 411734.44 | J44: 0 | K44: 2996071.64
A45: Northeast Middle | B45: 518 | C45: 418 | D45: 72 | E45: 89 | H45: 5308927 | I45: 1169385.56 | J45: 96531 | K45: 343074.03
A46: Olson Middle | B46: 347 | C46: 326 | D46: 50 | E46: 94 | H46: 4173641 | I46: 1062762.49 | J46: 42662 | K46: 748084.78
A47: Sanford Middle | B47: 642 | C47: 402 | D47: 123 | E47: 105 | H47: 5603067 | I47: 1077788.4 | J47: 156772 | K47: 296095.11
A48: Edison Senior High | B48: 830 | C48: 768 | D48: 158 | E48: 203 | H48: 10907358 | I48: 2631619.48 | J48: 140654 | K48: 1801696.08
A49: Henry Senior High | B49: 1108 | C49: 986 | D49: 183 | E49: 161 | H49: 10843291 | I49: 3300559.17 | J49: 144133 | K49: 482390.13
A50: North Senior High | B50: 223 | C50: 211 | D50: 15 | E50: 52 | H50: 4357958 | I50: 796535.85 | J50: 63484 | K50: 653713.95
A51: Roosevelt Senior High | B51: 794 | C51: 706 | D51: 272 | E51: 149 | H51: 10316028 | I51: 2596119.2 | J51: 316270 | K51: 1436935.05
A52: South Senior High | B52: 1844 | C52: 931 | D52: 190 | E52: 211 | H52: 14761279 | I52: 1876785.13 | J52: 98861 | K52: 1658356.52
A53: Wellstone International High | B53: 124 | C53: 121 | D53: 123 | E53: 1 | H53: 1335614 | I53: 287187.28 | J53: 113549 | K53: 0
A54: Southwest Senior High | B54: 1723 | C54: 619 | D54: 134 | E54: 182 | H54: 12075189 | I54: 550626 | J54: 110700 | K54: 1091360.02
A55: Washburn Senior High | B55: 1162 | C55: 590 | D55: 174 | E55: 172 | H55: 9455604 | I55: 1425788.16 | J55: 128676 | K55: 895679.95

Sheet Totals (hidden)
A1: ='My data'!A1 -> School name | B1: Ignore? | C1: ='My data'!B1 -> Total students | D1: ='My data'!H1 -> Total spending | E1: Baseline spending | F1: Baseline $/student | G1: Baseline % over/under | H1: ='My data'!C1 -> Poverty students | I1: ='My data'!I1 -> Poverty spending | J1: =IF(Category1<>"",Category1&" $/student","LeaveBlank") -> Poverty $/student | K1: =IF(Category1<>"",Category1&" % over/under","LeaveBlank") -> Poverty % over/under | L1: ='My data'!D1 -> ELL students | M1: ='My data'!J1 -> ELL spending | N1: =IF(Category2<>"",Category2&" $/student","LeaveBlank") -> ELL $/student | O1: =IF(Category2<>"",Category2&" % over/under","LeaveBlank") -> ELL % over/under | P1: ='My data'!E1 -> Special Ed students | Q1: ='My data'!K1 -> Special Ed spending | R1: =IF(Category3<>"",Category3&" $/student","LeaveBlank") -> Special Ed $/student | S1: =IF(Category3<>"",Category3&" % over/under","LeaveBlank") -> Special Ed % over/under | T1: ='My data'!F1 -> LeaveBlank | U1: ='My data'!L1 -> LeaveBlank | V1: =IF(Category4<>"",Category4&" $/student","LeaveBlank") -> LeaveBlank | W1: =IF(Category4<>"",Category4&" % over/under","LeaveBlank") -> LeaveBlank | X1: ='My data'!G1 -> LeaveBlank | Y1: ='My data'!M1 -> LeaveBlank | Z1: =IF(Category5<>"",Category5&" $/student","LeaveBlank") -> LeaveBlank | AA1: =IF(Category5<>"",Category5&" % over/under","LeaveBlank") -> LeaveBlank | AB1: Predicted spending for this mix | AC1: Actual spending for this mix | AD1: Spending compared to avg | AE1: Compared to avg FOR THIS MIX | AF1: $ above/below avg | AG1: of 100% FOR THIS MIX | AP1: Dramatized % for mix | AQ1: % Gain/loss under SBA | AT1: Use this to rank by adjusted spending. First PasteValues here, then sort | BW1: Some useful things | BY1: Existing total spending for school | BZ1: Excluded all kids | CA1: Excluded Cat1 | CB1: Excluded Cat2 | CC1: Excluded Cat3 | CD1: Excluded Cat4 | CE1: Excluded Cat5 | CF1: Total spending frozen | CG1: Total spending free | CI1: Coefficients for each non-frozen school using new %s | CJ1: Apportionment share | CK1: Free funding apportioned and frozen funding | CL1: Overall gain/loss compared to original | CM1: % gain/loss | DA1: "X"clude? | DC1: Use this to rank by custom SBA gain/loss. First PasteValues here, then sort
C2: =SUM(C3:C102) -> 31630 | D2: =SUM(D3:D102) -> 285665361.9 | E2: =SUM(E3:E102) -> 182890048.6 | F2: =E2/C2 -> 5782.170365 | G2: =F2/F2-1 -> 0 | H2: =SUM(H3:H102) -> 20314 | I2: =SUM(I3:I102) -> 60699980.01 | J2: =IF(I2<>0,I2/H2,0) -> 2988.08605 | K2: =IF(J2<>0,J2/J2-1,"") -> 0 | L2: =SUM(L3:L102) -> 7332 | M2: =SUM(M3:M102) -> 7613703 | N2: =IF(M2<>0,M2/L2,0) -> 1038.421031 | O2: =IF(N2<>0,N2/N2-1,"") -> 0 | P2: =SUM(P3:P102) -> 4998 | Q2: =SUM(Q3:Q102) -> 34461630.22 | R2: =IF(Q2<>0,Q2/P2,0) -> 6895.084078 | S2: =IF(R2<>0,R2/R2-1,"") -> 0 | T2: =SUM(T3:T102) -> 0 | U2: =SUM(U3:U102) -> 0 | V2: =IF(U2<>0,U2/T2,0) -> 0 | W2: =IF(V2<>0,V2/V2-1,"") ->  | X2: =SUM(X3:X102) -> 0 | Y2: =SUM(Y3:Y102) -> 0 | Z2: =IF(Y2<>0,Y2/X2,0) -> 0 | AA2: =IF(Z2<>0,Z2/Z2-1,"") ->  | AB2: =SUM(AB3:AB102) -> 285665361.9 | AC2: =SUM(AC3:AC102) -> 285665361.9 | AD2: =(AC2/C2)/(AC$2/C$2) -> 1 | AE2: =AC2/AB2-1 -> 0 | AF2: =SUM(AF3:AF102) -> 1.513399184e-08 | AG2: =AC2/AB2 -> 1 | AI2: Current average per-pupil spending across the district, in $ and % | AQ2: =AF2/AC2 -> 5.297804305e-17 | BY2: =D2 -> 285665361.9 | BZ2: =SUM(BZ3:BZ102) -> 0 | CA2: 0 | CB2: 0 | CC2: 0 | CD2: 0 | CE2: 0 | CF2: 0 | CG2: 285665361.9 | CI2: 49404.52181 | CJ2: 1 | CK2: 285665361.9 | CL2: -7.450580597e-09
A3: Armatage Elementary | B3: FALSE | C3: 533 | D3: 3798766 | E3: =IF(D3<>"", D3-I3-M3-Q3-U3-Y3,"") -> 3000136.99 | F3: =IF(E3<>"",E3/C3,"") -> 5628.774841 | G3: =IF(F3<>"",F3/F$2-1,"") -> -0.02652905645 | H3: 134 | I3: 138014 | J3: =IF(AND(I3<>"", H3<>"",H3<>0),I3/H3,"") -> 1029.955224 | K3: =IF(J3<>"",J3/J$2-1,"") -> -0.6553127297 | L3: 24 | N3: =IF(AND(M3<>"", L3<>"",L3<>0),M3/L3,"") ->  | O3: =IF(N3<>"",N3/N$2-1,"") ->  | P3: 72 | Q3: 660615.01 | R3: =IF(AND(Q3<>"", P3<>"",P3<>0),Q3/P3,"") -> 9175.208472 | S3: =IF(R3<>"",R3/R$2-1,"") -> 0.3306884106 | V3: =IF(AND(U3<>"", T3<>"",T3<>0),U3/T3,"") ->  | W3: =IF(V3<>"",V3/V$2-1,"") ->  | Z3: =IF(AND(Y3<>"", X3<>"",X3<>0),Y3/X3,"") ->  | AA3: =IF(Z3<>"",Z3/Z$2-1,"") ->  | AB3: =IF(A3<>"",C3*F$2+H3*J$2+L3*N$2+P3*R$2+T3*V$2+X3+Z$2,"") -> 4003668.493 | AC3: =IF(D3<>"",D3,"") -> 3798766 | AD3: =IF(AC3<>"",(AC3/C3)/(AC$2/C$2),"") -> 0.7891452407 | AE3: =IF(AC3<>"",AC3/AB3-1,"") -> -0.05117868615 | AF3: =IF(AB3<>"",AC3-AB3,"") -> -204902.4933 | AG3: =IF(AC3<>"",AC3/AB3,"") -> 0.9488213139 | AI3: Baseline per-pupil allocation | AL3: =F2 -> 5782.170365 | AN3: =1 -> 1 | AP3: =IF(AE3<0,AE3*1.5,AE3) -> -0.07676802922 | AQ3: =IF(AF3<>"",AF3/AC3,"") -> -0.05393922481 | AT3: Based on each school's mix of students and the current district average allocations | BW3: NumSchools | BY3: 3798766 | BZ3: =IF(B3=TRUE,C3,0) -> 0 | CA3: =IF(B3=TRUE,H3,0) -> 0 | CB3: =IF(B3=TRUE,L3,0) -> 0 | CC3: =IF(B3=TRUE,P3,0) -> 0 | CD3: =IF(B3=TRUE,T3,0) -> 0 | CE3: =IF(B3=TRUE,X3,0) -> 0 | CF3: =IF(B3=TRUE,D3,"") ->  | CG3: =IF(A3<>"",IF(CF3<>"","",D3),"") -> 3798766 | CI3: =IF(CG3<>"",(C3*100+H3*NewCat1Pct+L3*NewCat2Pct+P3*NewCat3Pct+T3*NewCat4Pct+X3*NewCat5Pct)/100,"") -> 692.4162107 | CJ3: =IF(CI3<>"",CI3/CI$2,"") -> 0.0140152396 | CK3: =IF(CJ3="",CF3,IF(C3<>"",TotFreePlusNew*CJ3,"")) -> 4003668.493 | CL3: =IF(C3<>"",CK3-D3,"") -> 204902.4933 | CM3: =IF(C3<>"",CL3/D3,"") -> 0.05393922481 | CR3: Number of schools excluded from model: | CW3: =ExcludedSchools -> 0 | DA3: =IF(B3= TRUE,"X","") ->  | DC3: Based on each school's mix of students and the custom student-based allocations
A4: Lake Harriet Lower Elementary | B4: FALSE | C4: 402 | D4: 2692498 | E4: 2439310.67 | F4: 6067.93699 | G4: =IF(F4<>"",F4/F$2-1,"") -> 0.04942203489 | H4: 17 | I4: 3061 | J4: 180.0588235 | K4: =IF(J4<>"",J4/J$2-1,"") -> -0.9397410849 | L4: 7 | N4: =IF(AND(M4<>"", L4<>"",L4<>0),M4/L4,"") ->  | O4: =IF(N4<>"",N4/N$2-1,"") ->  | P4: 25 | Q4: 250126.33 | R4: =IF(AND(Q4<>"", P4<>"",P4<>0),Q4/P4,"") -> 10005.0532 | S4: =IF(R4<>"",R4/R$2-1,"") -> 0.4510415083 | W4: =IF(V4<>"",V4/V$2-1,"") ->  | AA4: =IF(Z4<>"",Z4/Z$2-1,"") ->  | AB4: 2554875.999 | AC4: =IF(D4<>"",D4,"") -> 2692498 | AD4: 0.7416020893 | AE4: 0.05386641134 | AF4: =IF(AB4<>"",AC4-AB4,"") -> 137622.0015 | AG4: =IF(AC4<>"",AC4/AB4,"") -> 1.053866411 | AI4: =IF(Category1<>"",Category1&" increment","") -> Poverty increment | AL4: =IF(J2<>0,J2,"") -> 2988.08605 | AN4: =IF(AL4<>"",AL4/AL$3,"") -> 0.5167758577 | AP4: =IF(AE4<0,AE4*1.5,AE4) -> 0.05386641134 | AQ4: =IF(AF4<>"",AF4/AC4,"") -> 0.05111313043 | AT4: Ranked from most underfunded to most overfunded on a percentage basis | BW4: =COUNTA(A:A)-1 -> 54 | BY4: 2692498 | BZ4: 0 | CA4: =IF(B4=TRUE,H4,0) -> 0 | CB4: =IF(B4=TRUE,L4,0) -> 0 | CC4: =IF(B4=TRUE,P4,0) -> 0 | CD4: =IF(B4=TRUE,T4,0) -> 0 | CE4: =IF(B4=TRUE,X4,0) -> 0 | CG4: 2692498 | CI4: 441.8541547 | CJ4: =IF(CI4<>"",CI4/CI$2,"") -> 0.008943597438 | CK4: 2554875.999 | CL4: =IF(C4<>"",CK4-D4,"") -> -137622.0015 | CM4: =IF(C4<>"",CL4/D4,"") -> -0.05111313043 | CR4: New funds added to allocations: | CW4: =ExtraFunds -> 0 | DA4: =IF(B4= TRUE,"X","") ->  | DC4: Ranked by percent of budget gained or lost after applying custom allocations
A5: Bancroft Elementary | B5: FALSE | C5: 485 | D5: 5113094.64 | E5: 2651075.84 | F5: 5466.135753 | G5: -0.05465674514 | H5: 418 | I5: 1399649.83 | J5: 3348.444569 | K5: 0.1205984412 | L5: 197 | M5: 220781 | N5: 1120.715736 | O5: 0.07924984422 | P5: 94 | Q5: 841587.97 | R5: 8953.063511 | S5: 0.2984705349 | AB5: 4906079.442 | AC5: 5113094.64 | AD5: 1.167303267 | AE5: 0.04219564737 | AF5: 207015.1981 | AG5: 1.042195647 | AI5: =IF(Category2<>"",Category2&" increment","") -> ELL increment | AL5: =IF(N2<>0,N2,"") -> 1038.421031 | AN5: =IF(AL5<>"",AL5/AL$3,"") -> 0.1795901825 | AP5: 0.04219564737 | AQ5: 0.04048726117 | AT5: School | AW5: Current spending | AY5: Dollars over (under) | BA5: Percent of average | BC5: Adj sorter | BW5: NumCategories | BY5: 5113094.64 | BZ5: 0 | CA5: 0 | CB5: 0 | CC5: 0 | CD5: 0 | CE5: 0 | CG5: 5113094.64 | CI5: 848.4840696 | CJ5: 0.01717421885 | CK5: 4906079.442 | CL5: -207015.1981 | CM5: -0.04048726117 | DC5: School | DF5: Current spending | DH5: Dollar gain (loss) | DJ5: Percent gain (loss) | DL5: Adj sorter
A6: Barton Open Elementary | B6: FALSE | C6: 735 | D6: 4333134 | E6: 4089393.46 | F6: 5563.800626 | G6: -0.03776605062 | H6: 177 | I6: 120891 | J6: 683 | K6: -0.7714255919 | L6: 87 | M6: 103676 | N6: 1191.678161 | O6: 0.1475866968 | P6: 53 | Q6: 19173.54 | R6: 361.7649057 | S6: -0.9475329232 | AB6: 5234568.535 | AC6: 4333134 | AD6: 0.6527642914 | AE6: -0.1722079917 | AF6: -901434.5345 | AG6: 0.8277920083 | AI6: =IF(Category3<>"",Category3&" increment","") -> Special Ed increment | AL6: =IF(R2<>0,R2,"") -> 6895.084078 | AN6: =IF(AL6<>"",AL6/AL$3,"") -> 1.192473352 | AP6: -0.2583119875 | AQ6: -0.2080329236 | AT6: Emerson Elementary | AW6: 3111340.14 | AY6: -789724.9442 | BA6: -0.3036574347 | BB6: 0.7975617102 | BC6: =IF(BA6="",100,BA6) -> -0.3036574347 | BW6: =COUNTA('Start here'!D7:D11) -> 3 | BY6: 4333134 | BZ6: 0 | CA6: 0 | CB6: 0 | CC6: 0 | CD6: 0 | CE6: 0 | CG6: 4333134 | CI6: 905.2947604 | CJ6: 0.01832412758 | CK6: 5234568.535 | CL6: 901434.5345 | CM6: 0.2080329236 | CR6: Custom student-based allocation, in $ and % | DC6: Emerson Elementary | DF6: 3111340.14 | DH6: 789724.9442 | DJ6: 0.2538214752 | DK6: 0.2538214752 | DL6: =IF(DJ6="",-100,DJ6) -> 0.2538214752
A7: Bethune Elementary | B7: FALSE | C7: 352 | D7: 4590455.9 | E7: 2282507.02 | F7: 6484.394943 | G7: 0.121446539 | H7: 348 | I7: 1138777.36 | J7: 3272.348736 | K7: 0.09513202813 | L7: 25 | P7: 121 | Q7: 1169171.52 | R7: 9662.574545 | S7: 0.4013715332 | AB7: 3935443.613 | AC7: 4590455.9 | AD7: 1.443958676 | AE7: 0.166439251 | AF7: 655012.2873 | AG7: 1.166439251 | AI7: =IF(Category4<>"",Category4&" increment","") ->  | AL7: =IF(V2<>0,V2,"") ->  | AN7: =IF(AL7<>"",AL7/AL$3,"") ->  | AP7: 0.166439251 | AQ7: 0.1426900294 | AT7: Seward Elementary | AW7: 5709295 | AY7: -1231404.227 | BA7: -0.2661268383 | BB7: 0.8225821078 | BC7: =IF(BA7="",100,BA7) -> -0.2661268383 | BW7: ExtraFunds | BY7: 4590455.9 | BZ7: 0 | CA7: 0 | CB7: 0 | CC7: 0 | CD7: 0 | CE7: 0 | CG7: 4590455.9 | CI7: 680.6170287 | CJ7: 0.01377641163 | CK7: 3935443.613 | CL7: -655012.2873 | CM7: -0.1426900294 | CR7: (includes new funds added by user; omits schools excluded by user) | DC7: Seward Elementary | DF7: 5709295 | DH7: 1231404.227 | DJ7: 0.2156841129 | DK7: 0.2156841129 | DL7: 0.2156841129
A8: Burroughs Elementary | B8: FALSE | C8: 785 | D8: 4714966 | E8: 4247018.51 | F8: 5410.214662 | G8: -0.0643280427 | H8: 110 | I8: 65468 | J8: 595.1636364 | K8: -0.8008211188 | L8: 58 | M8: 63027 | N8: 1086.672414 | O8: 0.04646610696 | P8: 59 | Q8: 339452.49 | R8: 5753.432034 | S8: -0.1655747821 | AB8: 5334731.582 | AC8: 4714966 | AD8: 0.6650442104 | AE8: -0.1161755887 | AF8: -619765.582 | AG8: 0.8838244113 | AI8: =IF(Category5<>"",Category5&" increment","") ->  | AL8: =IF(Z2<>0,Z2,"") ->  | AP8: -0.174263383 | AQ8: -0.1314464584 | AT8: Barton Open Elementary | AW8: 4333134 | AY8: -901434.5345 | BA8: -0.2583119875 | BB8: 0.8277920083 | BC8: =IF(BA8="",100,BA8) -> -0.2583119875 | BW8: 0 | BY8: 4714966 | BZ8: 0 | CA8: 0 | CB8: 0 | CC8: 0 | CD8: 0 | CE8: 0 | CG8: 4714966 | CI8: 922.6175027 | CJ8: 0.01867475828 | CK8: 5334731.582 | CL8: 619765.582 | CM8: 0.1314464584 | CR8: Baseline per-pupil allocation | CU8: =IF(NewPPBaseAmt<>0,NewPPBaseAmt,"") -> 5782.170365 | CW8: 1 | DC8: Barton Open Elementary | DF8: 4333134 | DH8: 901434.5345 | DJ8: 0.2080329236 | DK8: 0.2080329236 | DL8: 0.2080329236
A9: Field Elementary | B9: FALSE | C9: 508 | D9: 3613100 | E9: 3303609.57 | F9: 6503.168445 | G9: 0.1246933305 | H9: 129 | I9: 108387 | J9: 840.2093023 | K9: -0.7188135521 | L9: 13 | P9: 75 | Q9: 201103.43 | R9: 2681.379067 | S9: -0.6111172777 | AB9: 3853436.425 | AC9: 3613100 | AD9: 0.787513265 | AE9: -0.06236937588 | AF9: -240336.4248 | AG9: 0.9376306241 | AP9: -0.09355406382 | AQ9: -0.06651806615 | AT9: Northrop Elementary | AW9: 2916300.73 | AY9: -563409.8083 | BA9: -0.2428692569 | BB9: 0.8380871621 | BC9: =IF(BA9="",100,BA9) -> -0.2428692569 | BW9: ExcludedSchools | BY9: 3613100 | BZ9: 0 | CA9: 0 | CB9: 0 | CC9: 0 | CD9: 0 | CE9: 0 | CG9: 3613100 | CI9: 666.4342594 | CJ9: 0.01348933731 | CK9: 3853436.425 | CL9: 240336.4248 | CM9: 0.06651806615 | CR9: =IF(Category1<>"",Category1&" increment","") -> Poverty increment | CU9: =IF(NewPPCat1Amt<>0,NewPPCat1Amt,"") -> 2988.08605 | CW9: =IF(NewCat1Pct=0,"",NewCat1Pct/100) -> 0.5167758577 | DC9: Northrop Elementary | DF9: 2916300.73 | DH9: 563409.8083 | DJ9: 0.193193316 | DK9: 0.193193316 | DL9: 0.193193316
A10: Lake Harriet Upper School | B10: FALSE | C10: 668 | D10: 4359710 | E10: 3739787.3 | F10: 5598.483982 | G10: -0.03176772231 | H10: 71 | I10: 20256 | J10: 285.2957746 | K10: -0.904522236 | L10: 13 | P10: 57 | Q10: 599666.7 | R10: 10520.46842 | S10: 0.5257926231 | AB10: 4481163.179 | AC10: 4359710 | AD10: 0.7226412487 | AE10: -0.02710304758 | AF10: -121453.1788 | AG10: 0.9728969524 | AP10: -0.04065457137 | AQ10: -0.02785808663 | AT10: Loring Elementary | AW10: 2911703.22 | AY10: -508852.912 | BA10: -0.2231448158 | BB10: 0.8512367895 | BC10: =IF(BA10="",100,BA10) -> -0.2231448158 | BW10: =COUNTIF(Excluded, "=TRUE") -> 0 | BY10: 4359710 | BZ10: 0 | CA10: 0 | CB10: 0 | CC10: 0 | CD10: 0 | CE10: 0 | CG10: 4359710 | CI10: 774.9967393 | CJ10: 0.01568675722 | CK10: 4481163.179 | CL10: 121453.1788 | CM10: 0.02785808663 | CR10: =IF(Category2<>"",Category2&" increment","") -> ELL increment | CU10: =IF(NewPPCat2Amt<>0,NewPPCat2Amt,"") -> 1038.421031 | CW10: =IF(NewCat2Pct=0,"",NewCat2Pct/100) -> 0.1795901825 | DC10: Loring Elementary | DF10: 2911703.22 | DH10: 508852.912 | DJ10: 0.174761256 | DK10: 0.174761256 | DL10: 0.174761256
A11: Hale Elementary | B11: FALSE | C11: 646 | D11: 4001728 | E11: 3554528.14 | F11: 5502.365542 | G11: -0.04839096829 | H11: 112 | I11: 64447 | J11: 575.4196429 | K11: -0.8074286907 | L11: 18 | P11: 72 | Q11: 382752.86 | R11: 5316.011944 | S11: -0.2290141955 | AB11: 4585085.325 | AC11: 4001728 | AD11: 0.6858934514 | AE11: -0.1272293281 | AF11: -583357.3252 | AG11: 0.8727706719 | AP11: -0.1908439921 | AQ11: -0.1457763559 | AT11: Windom School | AW11: 2847254.84 | AY11: -482447.8418 | BA11: -0.2173382526 | BB11: 0.8551078316 | BC11: =IF(BA11="",100,BA11) -> -0.2173382526 | BW11: TotFreePlusNew | BY11: 4001728 | BZ11: 0 | CA11: 0 | CB11: 0 | CC11: 0 | CD11: 0 | CE11: 0 | CG11: 4001728 | CI11: 792.9696007 | CJ11: 0.01605054703 | CK11: 4585085.325 | CL11: 583357.3252 | CM11: 0.1457763559 | CR11: =IF(Category3<>"",Category3&" increment","") -> Special Ed increment | CU11: =IF(NewPPCat3Amt<>0,NewPPCat3Amt,"") -> 6895.084078 | CW11: =IF(NewCat3Pct=0,"",NewCat3Pct/100) -> 1.192473352 | DC11: Windom School | DF11: 2847254.84 | DH11: 482447.8418 | DJ11: 0.1694431545 | DK11: 0.1694431545 | DL11: 0.1694431545
A12: Hiawatha Elementary | B12: FALSE | C12: 300 | D12: 2670395 | E12: 1700721.65 | F12: 5669.072167 | G12: -0.01955981763 | H12: 176 | I12: 467412.88 | J12: 2655.755 | K12: -0.1112187012 | L12: 56 | M12: 118719 | N12: 2119.982143 | O12: 1.04154392 | P12: 45 | Q12: 383541.47 | R12: 8523.143778 | S12: 0.2361189047 | AB12: 2628984.615 | AC12: 2670395 | AD12: 0.9855890274 | AE12: 0.01575147471 | AF12: 41410.38469 | AG12: 1.015751475 | AP12: 0.01575147471 | AQ12: 0.01550721324 | AT12: Anthony Middle School | AW12: 5804423 | AY12: -961505.8532 | BA12: -0.2131649343 | BB12: 0.8578900438 | BC12: =IF(BA12="",100,BA12) -> -0.2131649343 | BW12: =(IF(ExtraFunds<>"",ExtraFunds+CG2,CG2)) -> 285665361.9 | BY12: 2670395 | BZ12: 0 | CA12: 0 | CB12: 0 | CC12: 0 | CD12: 0 | CE12: 0 | CG12: 2670395 | CI12: 454.670902 | CJ12: 0.009203022019 | CK12: 2628984.615 | CL12: -41410.38469 | CM12: -0.01550721324 | CR12: =IF(Category4<>"",Category4&" increment","") ->  | CU12: =IF(NewPPCat4Amt<>0,NewPPCat4Amt,"") ->  | CW12: =IF(NewCat4Pct=0,"",NewCat4Pct/100) ->  | DC12: Anthony Middle School | DF12: 5804423 | DH12: 961505.8532 | DJ12: 0.1656505484 | DK12: 0.1656505484 | DL12: 0.1656505484
A13: Lk Nokomis Comm-Keewaydin | B13: FALSE | C13: 298 | D13: 2632773 | E13: 1776884.99 | F13: 5962.701309 | G13: 0.03122200365 | H13: 167 | I13: 396522.32 | J13: 2374.38515 | K13: -0.205382606 | L13: 48 | M13: 71845 | N13: 1496.770833 | O13: 0.441391101 | P13: 51 | Q13: 387520.69 | R13: 7598.444902 | S13: 0.1020090279 | AB13: 2623590.636 | AC13: 2632773 | AD13: 0.9782250048 | AE13: 0.003499922405 | AF13: 9182.363649 | AG13: 1.003499922 | AP13: 0.003499922405 | AQ13: 0.00348771567 | AT13: Nellie Stone Johnson Elementary | AW13: 6625180.41 | AY13: -1045970.36 | BA13: -0.2045267506 | BB13: 0.863648833 | BC13: =IF(BA13="",100,BA13) -> -0.2045267506 | BW13: OldCat1Pct | BY13: 2632773 | BZ13: 0 | CA13: 0 | CB13: 0 | CC13: 0 | CD13: 0 | CE13: 0 | CG13: 2632773 | CI13: 453.738038 | CJ13: 0.00918413986 | CK13: 2623590.636 | CL13: -9182.363649 | CM13: -0.00348771567 | CR13: =IF(Category5<>"",Category5&" increment","") ->  | CU13: =IF(NewPPCat5Amt<>0,NewPPCat5Amt,"") ->  | CW13: =IF(NewCat5Pct=0,"",NewCat5Pct/100) ->  | DC13: Nellie Stone Johnson Elementary | DF13: 6625180.41 | DH13: 1045970.36 | DJ13: 0.1578780192 | DK13: 0.1578780192 | DL13: 0.1578780192
A14: Kenny Elementary | B14: FALSE | C14: 376 | D14: 3094032 | E14: 2187790.44 | F14: 5818.591596 | G14: 0.006298885872 | H14: 138 | I14: 272299.7 | J14: 1973.186232 | K14: -0.3396487922 | L14: 9 | P14: 49 | Q14: 633941.86 | R14: 12937.58898 | S14: 0.8763497057 | AB14: 2933656.841 | AC14: 3094032 | AD14: 0.9111262615 | AE14: 0.05466732059 | AF14: 160375.159 | AG14: 1.054667321 | AP14: 0.05466732059 | AQ14: 0.05183371052 | AT14: Hale Elementary | AW14: 4001728 | AY14: -583357.3252 | BA14: -0.1908439921 | BB14: 0.8727706719 | BC14: =IF(BA14="",100,BA14) -> -0.1908439921 | BW14: =IF(AND(J2<>0,J2<>""),J2*100/F2,0) -> 51.67758577 | BY14: 3094032 | BZ14: 0 | CA14: 0 | CB14: 0 | CC14: 0 | CD14: 0 | CE14: 0 | CG14: 3094032 | CI14: 507.3625743 | CJ14: 0.01026955744 | CK14: 2933656.841 | CL14: -160375.159 | CM14: -0.05183371052 | DC14: Hale Elementary | DF14: 4001728 | DH14: 583357.3252 | DJ14: 0.1457763559 | DK14: 0.1457763559 | DL14: 0.1457763559
A15: Kenwood Elementary | B15: FALSE | C15: 451 | D15: 3213884 | E15: 2565590.38 | F15: 5688.670466 | G15: -0.01617038119 | H15: 150 | I15: 155012 | J15: 1033.413333 | K15: -0.6541554305 | L15: 30 | P15: 64 | Q15: 493281.62 | R15: 7707.525312 | S15: 0.1178290541 | AB15: 3528409.754 | AC15: 3213884 | AD15: 0.7890331759 | AE15: -0.08914093761 | AF15: -314525.7537 | AG15: 0.9108590624 | AP15: -0.1337114064 | AQ15: -0.09786468763 | AT15: Whittier International | AW15: 4957831 | AY15: -715192.5206 | BA15: -0.1891035313 | BB15: 0.8739309791 | BC15: =IF(BA15="",100,BA15) -> -0.1891035313 | BW15: OldCat2Pct | BY15: 3213884 | BZ15: 0 | CA15: 0 | CB15: 0 | CC15: 0 | CD15: 0 | CE15: 0 | CG15: 3213884 | CI15: 610.2223787 | CJ15: 0.01235154914 | CK15: 3528409.754 | CL15: 314525.7537 | CM15: 0.09786468763 | DC15: Whittier International | DF15: 4957831 | DH15: 715192.5206 | DJ15: 0.144255123 | DK15: 0.144255123 | DL15: 0.144255123
A16: Loring Elementary | B16: FALSE | C16: 384 | D16: 2911703.22 | E16: 1984784.72 | F16: 5168.710208 | G16: -0.1060951369 | H16: 260 | I16: 865141.5 | J16: 3327.467308 | K16: 0.1135781408 | L16: 69 | M16: 61777 | N16: 895.3188406 | O16: -0.1378074849 | P16: 51 | Q16: 0 | R16: 0 | S16: -1 | AB16: 3420556.132 | AC16: 2911703.22 | AD16: 0.8395711194 | AE16: -0.1487632105 | AF16: -508852.912 | AG16: 0.8512367895 | AP16: -0.2231448158 | AQ16: -0.174761256 | AT16: Burroughs Elementary | AW16: 4714966 | AY16: -619765.582 | BA16: -0.174263383 | BB16: 0.8838244113 | BC16: =IF(BA16="",100,BA16) -> -0.174263383 | BW16: =IF(AND(N2<>0,N2<>""),N2*100/F2,0) -> 17.95901825 | BY16: 2911703.22 | BZ16: 0 | CA16: 0 | CB16: 0 | CC16: 0 | CD16: 0 | CE16: 0 | CG16: 2911703.22 | CI16: 591.5695866 | CJ16: 0.01197399681 | CK16: 3420556.132 | CL16: 508852.912 | CM16: 0.174761256 | DC16: Burroughs Elementary | DF16: 4714966 | DH16: 619765.582 | DJ16: 0.1314464584 | DK16: 0.1314464584 | DL16: 0.1314464584
A17: Lyndale Elementary | B17: FALSE | C17: 492 | D17: 4347787.39 | E17: 2400655.45 | F17: 4879.380996 | G17: -0.1561333049 | H17: 372 | I17: 1241834.52 | J17: 3338.264839 | K17: 0.1171916683 | L17: 244 | M17: 248102 | N17: 1016.811475 | O17: -0.02081001351 | P17: 63 | Q17: 457195.42 | R17: 7257.070159 | S17: 0.05249915404 | AB17: 4644160.858 | AC17: 4347787.39 | AD17: 0.9784638934 | AE17: -0.06381636582 | AF17: -296373.4682 | AG17: 0.9361836342 | AP17: -0.09572454873 | AQ17: -0.0681665044 | AT17: Waite Park Elementary | AW17: 3490419.76 | AY17: -397197.4363 | BA17: -0.1532548408 | BB17: 0.8978301061 | BC17: =IF(BA17="",100,BA17) -> -0.1532548408 | BW17: OldCat3Pct | BY17: 4347787.39 | BZ17: 0 | CA17: 0 | CB17: 0 | CC17: 0 | CD17: 0 | CE17: 0 | CG17: 4347787.39 | CI17: 803.1864448 | CJ17: 0.01625734681 | CK17: 4644160.858 | CL17: 296373.4682 | CM17: 0.0681665044 | DC17: Waite Park Elementary | DF17: 3490419.76 | DH17: 397197.4363 | DJ17: 0.1137964668 | DK17: 0.1137964668 | DL17: 0.1137964668
A18: Jenny Lind Elementary | B18: FALSE | C18: 441 | D18: 4588686.85 | E18: =IF(D18<>"", D18-I18-M18-Q18-U18-Y18,"") -> 2167707.24 | F18: 4915.435918 | G18: =IF(F18<>"",F18/F$2-1,"") -> -0.1498977705 | H18: 393 | I18: 1322150.68 | J18: =IF(AND(I18<>"", H18<>"",H18<>0),I18/H18,"") -> 3364.251094 | K18: 0.1258882905 | L18: 79 | M18: 97911 | N18: 1239.379747 | O18: 0.1935233491 | P18: 98 | Q18: 1000917.93 | R18: 10213.44827 | S18: 0.4812652247 | V18: =IF(AND(U18<>"", T18<>"",T18<>0),U18/T18,"") ->  | W18: =IF(V18<>"",V18/V$2-1,"") ->  | Z18: =IF(AND(Y18<>"", X18<>"",X18<>0),Y18/X18,"") ->  | AA18: =IF(Z18<>"",Z18/Z$2-1,"") ->  | AB18: 4482008.449 | AC18: 4588686.85 | AD18: 1.152103351 | AE18: =IF(AC18<>"",AC18/AB18-1,"") -> 0.02380147247 | AF18: 106678.4007 | AG18: 1.023801472 | AP18: 0.02380147247 | AQ18: 0.02324813268 | AT18: Bryn Mawr Elementary | AW18: 3635876.51 | AY18: -400594.9763 | BA18: -0.1488657771 | BB18: 0.9007561486 | BC18: =IF(BA18="",100,BA18) -> -0.1488657771 | BW18: =IF(AND(R2<>0,R2<>""),R2*100/F2,0) -> 119.2473352 | BY18: 4588686.85 | BZ18: 0 | CA18: 0 | CB18: 0 | CC18: 0 | CD18: 0 | CE18: 0 | CG18: 4588686.85 | CI18: 775.142925 | CJ18: 0.01568971618 | CK18: 4482008.449 | CL18: -106678.4007 | CM18: -0.02324813268 | DC18: Bryn Mawr Elementary | DF18: 3635876.51 | DH18: 400594.9763 | DJ18: 0.110178378 | DK18: 0.110178378 | DL18: 0.110178378
A19: Northrop Elementary | B19: FALSE | C19: 400 | D19: 2916300.73 | E19: 1791185.05 | F19: 4477.962625 | G19: -0.2255567818 | H19: 230 | I19: 645056.44 | J19: 2804.593217 | K19: -0.06140814859 | L19: 90 | M19: 160193 | N19: 1779.922222 | O19: 0.7140660377 | P19: 56 | Q19: 319866.24 | R19: 5711.897143 | S19: -0.1715986232 | AB19: 3479710.538 | AC19: 2916300.73 | AD19: 0.8072609109 | AE19: -0.1619128379 | AF19: -563409.8083 | AG19: 0.8380871621 | AP19: -0.2428692569 | AQ19: -0.193193316 | AT19: Sheridan Elementary | AW19: 5881192.21 | AY19: -608397.5183 | BA19: -0.140624649 | BB19: 0.906250234 | BC19: =IF(BA19="",100,BA19) -> -0.140624649 | BW19: OldCat4Pct | BY19: 2916300.73 | BZ19: 0 | CA19: 0 | CB19: 0 | CC19: 0 | CD19: 0 | CE19: 0 | CG19: 2916300.73 | CI19: 601.8000714 | CJ19: 0.01218107269 | CK19: 3479710.538 | CL19: 563409.8083 | CM19: 0.193193316 | DC19: Sheridan Elementary | DF19: 5881192.21 | DH19: 608397.5183 | DJ19: 0.1034479909 | DK19: 0.1034479909 | DL19: 0.1034479909
A20: Pillsbury Elementary | B20: FALSE | C20: 602 | D20: 5602130.02 | E20: 2873237.64 | F20: 4772.82 | G20: -0.1745625433 | H20: 528 | I20: 1786775.36 | J20: 3384.044242 | K20: 0.1325123127 | L20: 316 | M20: 326241 | N20: 1032.408228 | O20: -0.005790332696 | P20: 110 | Q20: 615876.02 | R20: 5598.872909 | S20: -0.1879906255 | AB20: 6145176.288 | AC20: 5602130.02 | AD20: 1.03038209 | AE20: -0.08836951822 | AF20: -543046.268 | AG20: 0.9116304818 | AP20: -0.1325542773 | AQ20: -0.09693567733 | AT20: Kenwood Elementary | AW20: 3213884 | AY20: -314525.7537 | BA20: -0.1337114064 | BB20: 0.9108590624 | BC20: =IF(BA20="",100,BA20) -> -0.1337114064 | BW20: =IF(AND(V2<>0,V2<>""),V2*100/F2,0) -> 0 | BY20: 5602130.02 | BZ20: 0 | CA20: 0 | CB20: 0 | CC20: 0 | CD20: 0 | CE20: 0 | CG20: 5602130.02 | CI20: 1062.780219 | CJ20: 0.02151180055 | CK20: 6145176.288 | CL20: 543046.268 | CM20: 0.09693567733 | DC20: Kenwood Elementary | DF20: 3213884 | DH20: 314525.7537 | DJ20: 0.09786468763 | DK20: 0.09786468763 | DL20: 0.09786468763
A21: Pratt Elementary | B21: FALSE | C21: 177 | D21: 1864967.51 | E21: 1013872.97 | F21: 5728.095876 | G21: -0.009351936282 | H21: 123 | I21: 385512.39 | J21: 3134.247073 | K21: 0.04891459658 | L21: 58 | M21: 99328 | N21: 1712.551724 | O21: 0.6491882125 | P21: 40 | Q21: 366254.15 | R21: 9156.35375 | S21: 0.3279538939 | AB21: 1727010.522 | AC21: 1864967.51 | AD21: 1.166647386 | AE21: 0.07988196178 | AF21: 137956.9885 | AG21: 1.079881962 | AP21: 0.07988196178 | AQ21: 0.07397286427 | AT21: Pillsbury Elementary | AW21: 5602130.02 | AY21: -543046.268 | BA21: -0.1325542773 | BB21: 0.9116304818 | BC21: =IF(BA21="",100,BA21) -> -0.1325542773 | BW21: OldCat5Pct | BY21: 1864967.51 | BZ21: 0 | CA21: 0 | CB21: 0 | CC21: 0 | CD21: 0 | CE21: 0 | CG21: 1864967.51 | CI21: 298.6785952 | CJ21: 0.00604557203 | CK21: 1727010.522 | CL21: -137956.9885 | CM21: -0.07397286427 | DC21: Pillsbury Elementary | DF21: 5602130.02 | DH21: 543046.268 | DJ21: 0.09693567733 | DK21: 0.09693567733 | DL21: 0.09693567733
A22: Seward Elementary | B22: FALSE | C22: 865 | D22: 5709295 | E22: 4561231.13 | F22: 5273.099572 | G22: -0.08804147235 | H22: 430 | I22: 893311.15 | J22: 2077.467791 | K22: -0.3047496771 | L22: 225 | M22: 250448 | N22: 1113.102222 | O22: 0.0719180264 | P22: 61 | Q22: 4304.72 | R22: 70.56918033 | S22: -0.9897652908 | AB22: 6940699.227 | AC22: 5709295 | AD22: 0.730815895 | AE22: -0.1774178922 | AF22: -1231404.227 | AG22: 0.8225821078 | AP22: -0.2661268383 | AQ22: -0.2156841129 | AT22: Southwest Senior High | AW22: 12075189 | AY22: -1131169.523 | BA22: -0.1284801016 | BB22: 0.9143465989 | BC22: =IF(BA22="",100,BA22) -> -0.1284801016 | BW22: =IF(AND(Z2<>0,Z2<>""),Z2*100/F2,0) -> 0 | BY22: 5709295 | BZ22: 0 | CA22: 0 | CB22: 0 | CC22: 0 | CD22: 0 | CE22: 0 | CG22: 5709295 | CI22: 1200.362284 | CJ22: 0.02429660769 | CK22: 6940699.227 | CL22: 1231404.227 | CM22: 0.2156841129 | DC22: Southwest Senior High | DF22: 12075189 | DH22: 1131169.523 | DJ22: 0.0936771692 | DK22: 0.0936771692 | DL22: 0.0936771692
A23: Sheridan Elementary | B23: FALSE | C23: 644 | D23: 5881192.21 | E23: 3364144.9 | F23: 5223.827484 | G23: -0.09656285527 | H23: 607 | I23: 2048517.54 | J23: 3374.822965 | K23: 0.1294262981 | L23: 140 | M23: 133758 | N23: 955.4142857 | O23: -0.07993553953 | P23: 117 | Q23: 334771.77 | R23: 2861.297179 | S23: -0.5850235984 | AB23: 6489589.728 | AC23: 5881192.21 | AD23: 1.011162871 | AE23: -0.09374976597 | AF23: -608397.5183 | AG23: 0.906250234 | AP23: -0.140624649 | AQ23: -0.1034479909 | AT23: Marcy Open Elementary | AW23: 4771661 | AY23: -412315.7164 | BA23: -0.1193048519 | BB23: 0.920463432 | BC23: =IF(BA23="",100,BA23) -> -0.1193048519 | BW23: NewCat1Pct | BY23: 5881192.21 | BZ23: 0 | CA23: 0 | CB23: 0 | CC23: 0 | CD23: 0 | CE23: 0 | CG23: 5881192.21 | CI23: 1122.344953 | CJ23: 0.02271745404 | CK23: 6489589.728 | CL23: 608397.5183 | CM23: 0.1034479909 | DC23: Marcy Open Elementary | DF23: 4771661 | DH23: 412315.7164 | DJ23: 0.08640926429 | DK23: 0.08640926429 | DL23: 0.08640926429
A24: Waite Park Elementary | B24: FALSE | C24: 445 | D24: 3490419.76 | E24: 2141234.95 | F24: 4811.763933 | G24: -0.1678273677 | H24: 277 | I24: 800759 | J24: 2890.826715 | K24: -0.03254904079 | L24: 97 | M24: 184761 | N24: 1904.752577 | O24: 0.8342777354 | P24: 56 | Q24: 363664.81 | R24: 6494.014464 | S24: -0.05816747248 | AB24: 3887617.196 | AC24: 3490419.76 | AD24: 0.8684788689 | AE24: -0.1021698939 | AF24: -397197.4363 | AG24: 0.8978301061 | AP24: -0.1532548408 | AQ24: -0.1137964668 | AT24: Ramsey Fine Arts Elementary | AW24: 9277095 | AY24: -789484.0195 | BA24: -0.1176393715 | BB24: 0.9215737523 | BC24: =IF(BA24="",100,BA24) -> -0.1176393715 | BW24: 51.67758577 | BY24: 3490419.76 | BZ24: 0 | CA24: 0 | CB24: 0 | CC24: 0 | CD24: 0 | CE24: 0 | CG24: 3490419.76 | CI24: 672.345668 | CJ24: 0.0136089905 | CK24: 3887617.196 | CL24: 397197.4363 | CM24: 0.1137964668 | DC24: Ramsey Fine Arts Elementary | DF24: 9277095 | DH24: 789484.0195 | DJ24: 0.08510034871 | DK24: 0.08510034871 | DL24: 0.08510034871
A25: Lk Nokomis Comm-Wenonah | B25: FALSE | C25: 293 | D25: 2505341 | E25: 1734555.44 | F25: 5919.984437 | G25: 0.02383431543 | H25: 155 | I25: 400040 | J25: 2580.903226 | K25: -0.1362687744 | L25: 50 | M25: 84041 | N25: 1680.82 | O25: 0.6186305455 | P25: 28 | Q25: 286704.56 | R25: 10239.44857 | S25: 0.4850360715 | AB25: 2402312.66 | AC25: 2505341 | AD25: 0.9467620334 | AE25: 0.04288714849 | AF25: 103028.3398 | AG25: 1.042887148 | AP25: 0.04288714849 | AQ25: 0.04112347971 | AT25: Anishinabe Academy | AW25: 2988228.79 | AY25: -219468.9741 | BA25: -0.1026292018 | BB25: 0.9315805321 | BC25: =IF(BA25="",100,BA25) -> -0.1026292018 | BW25: NewCat2Pct | BY25: 2505341 | BZ25: 0 | CA25: 0 | CB25: 0 | CC25: 0 | CD25: 0 | CE25: 0 | CG25: 2505341 | CI25: 415.4690209 | CJ25: 0.008409534305 | CK25: 2402312.66 | CL25: -103028.3398 | CM25: -0.04112347971 | DC25: Anishinabe Academy | DF25: 2988228.79 | DH25: 219468.9741 | DJ25: 0.07344450159 | DK25: 0.07344450159 | DL25: 0.07344450159
A26: Windom School | B26: FALSE | C26: 390 | D26: 2847254.84 | E26: 1958724.36 | F26: 5022.370154 | G26: -0.131403982 | H26: 204 | I26: 655348.48 | J26: 3212.492549 | K26: 0.07510041404 | L26: 169 | M26: 233182 | N26: 1379.775148 | O26: 0.3287241943 | P26: 42 | Q26: 0 | R26: 0 | S26: -1 | AB26: 3329702.682 | AC26: 2847254.84 | AD26: 0.8083572565 | AE26: -0.1448921684 | AF26: -482447.8418 | AG26: 0.8551078316 | AP26: -0.2173382526 | AQ26: -0.1694431545 | AT26: Lyndale Elementary | AW26: 4347787.39 | AY26: -296373.4682 | BA26: -0.09572454873 | BB26: 0.9361836342 | BC26: =IF(BA26="",100,BA26) -> -0.09572454873 | BW26: 17.95901825 | BY26: 2847254.84 | BZ26: 0 | CA26: 0 | CB26: 0 | CC26: 0 | CD26: 0 | CE26: 0 | CG26: 2847254.84 | CI26: 575.8568966 | CJ26: 0.01165595528 | CK26: 3329702.682 | CL26: 482447.8418 | CM26: 0.1694431545 | DC26: Lyndale Elementary | DF26: 4347787.39 | DH26: 296373.4682 | DJ26: 0.0681665044 | DK26: 0.0681665044 | DL26: 0.0681665044
A27: Ramsey Fine Arts Elementary | B27: FALSE | C27: 1039 | D27: 9277095 | E27: 5474282.23 | F27: 5268.799066 | G27: -0.08878522523 | H27: 902 | I27: 2630351.28 | J27: 2916.132239 | K27: -0.02408023359 | L27: 450 | M27: 352373 | N27: 783.0511111 | O27: -0.2459213675 | P27: 130 | Q27: 820088.49 | R27: 6308.373 | S27: -0.08509121441 | AB27: 10066579.02 | AC27: 9277095 | AD27: 0.9886397425 | AE27: -0.07842624768 | AF27: -789484.0195 | AG27: 0.9215737523 | AP27: -0.1176393715 | AQ27: -0.08510034871 | AT27: Field Elementary | AW27: 3613100 | AY27: -240336.4248 | BA27: -0.09355406382 | BB27: 0.9376306241 | BC27: =IF(BA27="",100,BA27) -> -0.09355406382 | BW27: NewCat3Pct | BY27: 9277095 | BZ27: 0 | CA27: 0 | CB27: 0 | CC27: 0 | CD27: 0 | CE27: 0 | CG27: 9277095 | CI27: 1740.968942 | CJ27: 0.03523906068 | CK27: 10066579.02 | CL27: 789484.0195 | CM27: 0.08510034871 | DC27: Field Elementary | DF27: 3613100 | DH27: 240336.4248 | DJ27: 0.06651806615 | DK27: 0.06651806615 | DL27: 0.06651806615
A28: Jefferson Elementary | B28: FALSE | C28: 626 | D28: 7377864.54 | E28: 3380462.97 | F28: 5400.100591 | G28: -0.06607722523 | H28: 585 | I28: 2017104.33 | J28: 3448.04159 | K28: 0.1539298175 | L28: 318 | M28: 371201 | N28: 1167.298742 | O28: 0.1241093036 | P28: 161 | Q28: 1609096.24 | R28: 9994.386584 | S28: 0.4494945198 | AB28: 6807995.412 | AC28: 7377864.54 | AD28: 1.304962261 | AE28: 0.08370586259 | AF28: 569869.1284 | AG28: 1.083705863 | AP28: 0.08370586259 | AQ28: 0.07724038919 | AT28: Green Central Park Elementary | AW28: 5275785.46 | AY28: -285115.9654 | BA28: -0.07690730611 | BB28: 0.9487284626 | BC28: =IF(BA28="",100,BA28) -> -0.07690730611 | BW28: 119.2473352 | BY28: 7377864.54 | BZ28: 0 | CA28: 0 | CB28: 0 | CC28: 0 | CD28: 0 | CE28: 0 | CG28: 7377864.54 | CI28: 1177.411765 | CJ28: 0.02383206479 | CK28: 6807995.412 | CL28: -569869.1284 | CM28: -0.07724038919 | DC28: Green Central Park Elementary | DF28: 5275785.46 | DH28: 285115.9654 | DJ28: 0.05404237295 | DK28: 0.05404237295 | DL28: 0.05404237295
A29: Dowling Elementary | B29: FALSE | C29: 490 | D29: 4703209 | E29: 3195200.44 | F29: 6520.817224 | G29: 0.1277456065 | H29: 163 | I29: 334980.85 | J29: 2055.097239 | K29: -0.3122362592 | L29: 59 | M29: 73639 | N29: 1248.118644 | O29: 0.2019389118 | P29: 66 | Q29: 1099388.71 | R29: 16657.4047 | S29: 1.415837792 | AB29: 3836663.895 | AC29: 4703209 | AD29: 1.062771273 | AE29: 0.2258590091 | AF29: 866545.1054 | AG29: 1.225859009 | AP29: 0.2258590091 | AQ29: 0.1842455025 | AT29: Armatage Elementary | AW29: 3798766 | AY29: -204902.4933 | BA29: -0.07676802922 | BB29: 0.9488213139 | BC29: =IF(BA29="",100,BA29) -> -0.07676802922 | BW29: NewCat4Pct | BY29: 4703209 | BZ29: 0 | CA29: 0 | CB29: 0 | CC29: 0 | CD29: 0 | CE29: 0 | CG29: 4703209 | CI29: 663.5335268 | CJ29: 0.0134306234 | CK29: 3836663.895 | CL29: -866545.1054 | CM29: -0.1842455025 | DC29: Armatage Elementary | DF29: 3798766 | DH29: 204902.4933 | DJ29: 0.05393922481 | DK29: 0.05393922481 | DL29: 0.05393922481
A30: Andersen Community | B30: FALSE | C30: 1072 | D30: 11409139.46 | E30: 5500826.37 | F30: 5131.367882 | G30: -0.1125533219 | H30: 1056 | I30: 3979935.97 | J30: 3768.878759 | K30: 0.2613019495 | L30: 777 | M30: 763772 | N30: 982.975547 | O30: -0.05339403042 | P30: 184 | Q30: 1164605.12 | R30: 6329.375652 | S30: -0.08204518162 | AB30: 11429454.11 | AC30: 11409139.46 | AD30: 1.178418934 | AE30: -0.001777394644 | AF30: -20314.65052 | AG30: 0.9982226054 | AP30: -0.002666091965 | AQ30: -0.0017805594 | AT30: Washburn Senior High | AW30: 9455604 | AY30: -392888.4536 | BA30: -0.05983988749 | BB30: 0.9601067417 | BC30: =IF(BA30="",100,BA30) -> -0.05983988749 | BW30: 0 | BY30: 11409139.46 | BZ30: 0 | CA30: 0 | CB30: 0 | CC30: 0 | CD30: 0 | CE30: 0 | CG30: 11409139.46 | CI30: 1976.671974 | CJ30: 0.04000994043 | CK30: 11429454.11 | CL30: 20314.65052 | CM30: 0.0017805594 | DC30: Washburn Senior High | DF30: 9455604 | DH30: 392888.4536 | DJ30: 0.04155085741 | DK30: 0.04155085741 | DL30: 0.04155085741
A31: Sullivan Elementary | B31: FALSE | C31: 565 | D31: 6602096.59 | E31: 3493121.38 | F31: 6182.515717 | G31: 0.06923790325 | H31: 513 | I31: 1773489.24 | J31: 3457.094035 | K31: 0.1569593304 | L31: 229 | M31: 158809 | N31: 693.489083 | O31: -0.3321696478 | P31: 139 | Q31: 1176676.97 | R31: 8465.301942 | S31: 0.2277300533 | AB31: 5996029.502 | AC31: 6602096.59 | AD31: 1.293823498 | AE31: 0.1010780697 | AF31: 606067.0877 | AG31: 1.10107807 | AP31: 0.1010780697 | AQ31: 0.09179918522 | AT31: Sanford Middle | AW31: 5603067 | AY31: -162006.5809 | BA31: -0.04215208496 | BB31: 0.97189861 | BC31: =IF(BA31="",100,BA31) -> -0.04215208496 | BW31: NewCat5Pct | BY31: 6602096.59 | BZ31: 0 | CA31: 0 | CB31: 0 | CC31: 0 | CD31: 0 | CE31: 0 | CG31: 6602096.59 | CI31: 1036.985963 | CJ31: 0.0209896974 | CK31: 5996029.502 | CL31: -606067.0877 | CM31: -0.09179918522 | DC31: Sanford Middle | DF31: 5603067 | DH31: 162006.5809 | DJ31: 0.02891391106 | DK31: 0.02891391106 | DL31: 0.02891391106
A32: Anishinabe Academy | B32: FALSE | C32: 324 | D32: 2988228.79 | E32: 1610186.44 | F32: 4969.711235 | G32: -0.140511102 | H32: 312 | I32: 1378042.35 | J32: 4416.802404 | K32: 0.4781376208 | L32: 2 | P32: 58 | Q32: 0 | R32: 0 | S32: -1 | AB32: 3207697.764 | AC32: 2988228.79 | AD32: 1.021199148 | AE32: -0.06841946787 | AF32: -219468.9741 | AG32: 0.9315805321 | AP32: -0.1026292018 | AQ32: -0.07344450159 | AT32: Lake Harriet Upper School | AW32: 4359710 | AY32: -121453.1788 | BA32: -0.04065457137 | BB32: 0.9728969524 | BC32: =IF(BA32="",100,BA32) -> -0.04065457137 | BW32: 0 | BY32: 2988228.79 | BZ32: 0 | CA32: 0 | CB32: 0 | CC32: 0 | CD32: 0 | CE32: 0 | CG32: 2988228.79 | CI32: 554.7567024 | CJ32: 0.01122886493 | CK32: 3207697.764 | CL32: 219468.9741 | CM32: 0.07344450159 | DC32: Lake Harriet Upper School | DF32: 4359710 | DH32: 121453.1788 | DJ32: 0.02785808663 | DK32: 0.02785808663 | DL32: 0.02785808663
A33: Marcy Open Elementary | B33: FALSE | C33: 640 | D33: 4771661 | E33: 3393894.93 | F33: 5302.960828 | G33: -0.0828771043 | H33: 281 | I33: 485088.46 | J33: 1726.293452 | K33: -0.4222745184 | L33: 102 | M33: 141920 | N33: 1391.372549 | O33: 0.3398924977 | P33: 78 | Q33: 750757.61 | R33: 9625.097564 | S33: 0.3959362142 | AB33: 5183976.716 | AC33: 4771661 | AD33: 0.825526875 | AE33: -0.07953656797 | AF33: -412315.7164 | AG33: 0.920463432 | AP33: -0.1193048519 | AQ33: -0.08640926429 | AT33: Hall International | AW33: 3924429.69 | AY33: -92408.16752 | BA33: -0.03450780345 | BB33: 0.9769947977 | BC33: =IF(BA33="",100,BA33) -> -0.03450780345 | BW33: NewPPBaseAmt | BY33: 4771661 | BZ33: 0 | CA33: 0 | CB33: 0 | CC33: 0 | CD33: 0 | CE33: 0 | CG33: 4771661 | CI33: 896.5451361 | CJ33: 0.01814702589 | CK33: 5183976.716 | CL33: 412315.7164 | CM33: 0.08640926429 | DC33: Hall International | DF33: 3924429.69 | DH33: 92408.16752 | DJ33: 0.02354690358 | DK33: 0.02354690358 | DL33: 0.02354690358
A34: Bryn Mawr Elementary | B34: FALSE | C34: 412 | D34: 3635876.51 | E34: 1823424.47 | F34: 4425.787549 | G34: -0.2345802234 | H34: 334 | I34: 1199993.57 | J34: 3592.79512 | K34: 0.2023733789 | L34: 114 | M34: 152129 | N34: 1334.464912 | O34: 0.2850904135 | P34: 78 | Q34: 460329.47 | R34: 5901.659872 | S34: -0.1440771707 | AB34: 4036471.486 | AC34: 3635876.51 | AD34: 0.977132631 | AE34: -0.09924385139 | AF34: -400594.9763 | AG34: 0.9007561486 | AP34: -0.1488657771 | AQ34: -0.110178378 | AT34: South Senior High | AW34: 14761279 | AY34: -335114.0006 | BA34: -0.03329742415 | BB34: 0.9778017172 | BC34: =IF(BA34="",100,BA34) -> -0.03329742415 | BW34: =TotFreePlusNew/(NonExcludedKids+(NonExclCat1*NewCat1Pct)/100+(NonExclCat2*NewCat2Pct)/100+(NonExclCat3*NewCat3Pct)/100+(NonExclCat4*NewCat4Pct)/100+(NonExclCat5*NewCat5Pct)/100) -> 5782.170365 | BY34: =D34 -> 3635876.51 | BZ34: 0 | CA34: 0 | CB34: 0 | CC34: 0 | CD34: 0 | CE34: 0 | CG34: 3635876.51 | CI34: 698.0893388 | CJ34: 0.01413006974 | CK34: 4036471.486 | CL34: 400594.9763 | CM34: 0.110178378 | DC34: South Senior High | DF34: 14761279 | DH34: 335114.0006 | DJ34: 0.02270223336 | DK34: 0.02270223336 | DL34: 0.02270223336
A35: Green Central Park Elementary | B35: FALSE | C35: 540 | D35: 5275785.46 | E35: 3082567.4 | F35: =IF(E35<>"",E35/C35,"") -> 5708.458148 | G35: -0.01274819172 | H35: 523 | I35: 1840724.06 | J35: 3519.548872 | K35: 0.177860615 | L35: 352 | M35: 352494 | N35: 1001.403409 | O35: -0.03564798949 | P35: 74 | Q35: 0 | R35: 0 | S35: -1 | AB35: =IF(A35<>"",C35*F$2+H35*J$2+L35*N$2+P35*R$2+T35*V$2+X35+Z$2,"") -> 5560901.425 | AC35: 5275785.46 | AD35: =IF(AC35<>"",(AC35/C35)/(AC$2/C$2),"") -> 1.081770104 | AE35: -0.0512715374 | AF35: -285115.9654 | AG35: 0.9487284626 | AP35: -0.07690730611 | AQ35: -0.05404237295 | AT35: Andersen Community | AW35: 11409139.46 | AY35: -20314.65052 | BA35: -0.002666091965 | BB35: 0.9982226054 | BC35: =IF(BA35="",100,BA35) -> -0.002666091965 | BW35: NewPPCat1Amt | BY35: 5275785.46 | BZ35: =IF(B35=TRUE,C35,0) -> 0 | CA35: 0 | CB35: 0 | CC35: 0 | CD35: 0 | CE35: 0 | CF35: =IF(B35=TRUE,D35,"") ->  | CG35: =IF(A35<>"",IF(CF35<>"","",D35),"") -> 5275785.46 | CI35: =IF(CG35<>"",(C35*100+H35*NewCat1Pct+L35*NewCat2Pct+P35*NewCat3Pct+T35*NewCat4Pct+X35*NewCat5Pct)/100,"") -> 961.7325459 | CJ35: 0.0194664883 | CK35: =IF(CJ35="",CF35,IF(C35<>"",TotFreePlusNew*CJ35,"")) -> 5560901.425 | CL35: 285115.9654 | CM35: 0.05404237295 | DC35: Andersen Community | DF35: 11409139.46 | DH35: 20314.65052 | DJ35: 0.0017805594 | DK35: 0.0017805594 | DL35: 0.0017805594
A36: Emerson Elementary | B36: FALSE | C36: 419 | D36: 3111340.14 | E36: 1705337.79 | F36: 4070.018592 | G36: -0.2961088423 | H36: 324 | I36: 1102263.35 | J36: 3402.047377 | K36: 0.1385372845 | L36: 239 | M36: 303739 | N36: 1270.874477 | O36: 0.2238527909 | P36: 38 | Q36: 0 | R36: 0 | S36: -1 | AB36: 3901065.084 | AC36: 3111340.14 | AD36: 0.8221954657 | AE36: -0.2024382898 | AF36: -789724.9442 | AG36: 0.7975617102 | AP36: -0.3036574347 | AQ36: -0.2538214752 | AT36: Lk Nokomis Comm-Keewaydin | AW36: 2632773 | AY36: 9182.363649 | BA36: 0.003499922405 | BB36: 1.003499922 | BC36: =IF(BA36="",100,BA36) -> 0.003499922405 | BW36: =IF(NewCat1Pct <> "", NewPPBaseAmt*NewCat1Pct/100, 0) -> 2988.08605 | BY36: 3111340.14 | BZ36: 0 | CA36: 0 | CB36: 0 | CC36: 0 | CD36: 0 | CE36: 0 | CG36: 3111340.14 | CI36: 674.6714189 | CJ36: 0.01365606617 | CK36: 3901065.084 | CL36: 789724.9442 | CM36: 0.2538214752 | DC36: Lk Nokomis Comm-Keewaydin | DF36: 2632773 | DH36: -9182.363649 | DJ36: -0.00348771567 | DK36: -0.00348771567 | DL36: -0.00348771567
A37: Lucy Laney @ Cleveland Park | B37: FALSE | C37: 608 | D37: 6540850.22 | E37: 3716708.4 | F37: 6113.007237 | G37: 0.05721672857 | H37: 601 | I37: 2004952.48 | J37: 3336.027421 | K37: 0.1164428888 | L37: 19 | P37: 131 | Q37: 819189.34 | R37: 6253.35374 | S37: -0.09307070515 | AB37: 6234385.311 | AC37: 6540850.22 | AD37: 1.191165848 | AE37: 0.04915719731 | AF37: 306464.9088 | AG37: 1.049157197 | AP37: 0.04915719731 | AQ37: 0.04685398664 | AT37: Hiawatha Elementary | AW37: 2670395 | AY37: 41410.38469 | BA37: 0.01575147471 | BB37: 1.015751475 | BC37: =IF(BA37="",100,BA37) -> 0.01575147471 | BW37: NewPPCat2Amt | BY37: 6540850.22 | BZ37: 0 | CA37: 0 | CB37: 0 | CC37: 0 | CD37: 0 | CE37: 0 | CG37: 6540850.22 | CI37: 1078.208513 | CJ37: 0.0218240856 | CK37: 6234385.311 | CL37: -306464.9088 | CM37: -0.04685398664 | DC37: Hiawatha Elementary | DF37: 2670395 | DH37: -41410.38469 | DJ37: -0.01550721324 | DK37: -0.01550721324 | DL37: -0.01550721324
A38: Hall International | B38: FALSE | C38: 389 | D38: 3924429.69 | E38: 2124707.49 | F38: 5461.972982 | G38: -0.05537667733 | H38: 349 | I38: 1119426.03 | J38: 3207.524441 | K38: 0.07343777525 | L38: 14 | M38: 47747 | N38: 3410.5 | O38: 2.284313297 | P38: 103 | Q38: 632549.17 | R38: 6141.254078 | S38: -0.1093286161 | AB38: 4016837.858 | AC38: 3924429.69 | AD38: 1.117039575 | AE38: -0.0230052023 | AF38: -92408.16752 | AG38: 0.9769947977 | AP38: -0.03450780345 | AQ38: -0.02354690358 | AT38: Henry Senior High | AW38: 10843291 | AY38: 190253.8061 | BA38: 0.01785911404 | BB38: 1.017859114 | BC38: =IF(BA38="",100,BA38) -> 0.01785911404 | BW38: =IF(NewCat2Pct <> "", NewPPBaseAmt*NewCat2Pct/100, 0) -> 1038.421031 | BY38: 3924429.69 | BZ38: 0 | CA38: 0 | CB38: 0 | CC38: 0 | CD38: 0 | CE38: 0 | CG38: 3924429.69 | CI38: 694.6937922 | CJ38: 0.01406134027 | CK38: 4016837.858 | CL38: 92408.16752 | CM38: 0.02354690358 | DC38: Henry Senior High | DF38: 10843291 | DH38: -190253.8061 | DJ38: -0.01754576227 | DK38: -0.01754576227 | DL38: =IF(DJ38="",-100,DJ38) -> -0.01754576227
A39: Nellie Stone Johnson Elementary | B39: FALSE | C39: 729 | D39: 6625180.41 | E39: 3750554.05 | F39: 5144.792936 | G39: -0.1102315201 | H39: 710 | I39: 2283242.53 | J39: 3215.834549 | K39: 0.07621885582 | L39: 216 | M39: 198340 | N39: 918.2407407 | O39: -0.1157336829 | P39: 161 | Q39: 393043.83 | R39: 2441.266025 | S39: -0.6459410796 | AB39: 7671150.77 | AC39: 6625180.41 | AD39: 1.00626366 | AE39: -0.136351167 | AF39: -1045970.36 | AG39: 0.863648833 | AP39: -0.2045267506 | AQ39: -0.1578780192 | AT39: Jenny Lind Elementary | AW39: 4588686.85 | AY39: 106678.4007 | BA39: 0.02380147247 | BB39: 1.023801472 | BC39: =IF(BA39="",100,BA39) -> 0.02380147247 | BW39: NewPPCat3Amt | BY39: 6625180.41 | BZ39: 0 | CA39: 0 | CB39: 0 | CC39: 0 | CD39: 0 | CE39: 0 | CG39: 6625180.41 | CI39: 1326.690548 | CJ39: 0.02685362594 | CK39: 7671150.77 | CL39: 1045970.36 | CM39: 0.1578780192 | DC39: Jenny Lind Elementary | DF39: 4588686.85 | DH39: -106678.4007 | DJ39: -0.02324813268 | DK39: -0.02324813268 | DL39: -0.02324813268
A40: Whittier International | B40: FALSE | C40: 638 | D40: 4957831 | E40: 3389564.39 | F40: 5312.79685 | G40: -0.08117600925 | H40: 407 | I40: 1011331.51 | J40: 2484.844005 | K40: -0.1684161822 | L40: 268 | M40: 244952 | N40: 914 | O40: -0.1198175185 | P40: 71 | Q40: 311983.1 | R40: 4394.128169 | S40: -0.3627157958 | AB40: 5673023.521 | AC40: 4957831 | AD40: 0.8604242627 | AE40: -0.1260690209 | AF40: -715192.5206 | AG40: 0.8739309791 | AP40: -0.1891035313 | AQ40: -0.144255123 | AT40: Bancroft Elementary | AW40: 5113094.64 | AY40: 207015.1981 | BA40: 0.04219564737 | BB40: 1.042195647 | BC40: =IF(BA40="",100,BA40) -> 0.04219564737 | BW40: =IF(NewCat3Pct <> "", NewPPBaseAmt*NewCat3Pct/100, 0) -> 6895.084078 | BY40: 4957831 | BZ40: 0 | CA40: 0 | CB40: 0 | CC40: 0 | CD40: 0 | CE40: 0 | CG40: 4957831 | CI40: 981.123551 | CJ40: 0.01985898284 | CK40: 5673023.521 | CL40: 715192.5206 | CM40: 0.144255123 | DC40: Bancroft Elementary | DF40: 5113094.64 | DH40: -207015.1981 | DJ40: -0.04048726117 | DK40: -0.04048726117 | DL40: -0.04048726117
A41: Cityview Pam Magnet | B41: FALSE | C41: 158 | D41: 3541557 | E41: 1382724.36 | F41: 8751.42 | G41: 0.5135181858 | H41: 156 | I41: 1791837.97 | J41: 11486.14083 | K41: 2.843979271 | L41: 24 | M41: 16800 | N41: 700 | O41: -0.3258996312 | P41: 74 | Q41: 350194.67 | R41: 4732.360405 | S41: -0.3136616824 | AB41: 1914882.668 | AC41: 3541557 | AD41: 2.481868445 | AE41: 0.8494903419 | AF41: 1626674.332 | AG41: 1.849490342 | AP41: 0.8494903419 | AQ41: 0.4593105044 | AT41: Lk Nokomis Comm-Wenonah | AW41: 2505341 | AY41: 103028.3398 | BA41: 0.04288714849 | BB41: 1.042887148 | BC41: =IF(BA41="",100,BA41) -> 0.04288714849 | BW41: NewPPCat4Amt | BY41: 3541557 | BZ41: 0 | CA41: 0 | CB41: 0 | CC41: 0 | CD41: 0 | CE41: 0 | CG41: 3541557 | CI41: 331.1702262 | CJ41: 0.006703237156 | CK41: 1914882.668 | CL41: -1626674.332 | CM41: -0.4593105044 | DC41: Lk Nokomis Comm-Wenonah | DF41: 2505341 | DH41: -103028.3398 | DJ41: -0.04112347971 | DK41: -0.04112347971 | DL41: -0.04112347971
A42: Hmong International Academy | B42: FALSE | C42: 390 | D42: 4743556.46 | E42: 2011319.95 | F42: 5157.230641 | G42: -0.1080804757 | H42: 359 | I42: 1276499.1 | J42: 3555.707799 | K42: 0.1899616479 | L42: 254 | M42: 345519 | N42: 1360.311024 | O42: 0.3099802324 | P42: 80 | Q42: 1110218.41 | R42: 13877.73012 | S42: 1.012699188 | AB42: 4143135.002 | AC42: 4743556.46 | AD42: 1.346731677 | AE42: 0.1449195978 | AF42: 600421.4579 | AG42: 1.144919598 | AP42: 0.1449195978 | AQ42: 0.1265762225 | AT42: Lucy Laney @ Cleveland Park | AW42: 6540850.22 | AY42: 306464.9088 | BA42: 0.04915719731 | BB42: 1.049157197 | BC42: =IF(BA42="",100,BA42) -> 0.04915719731 | BW42: =IF(NewCat4Pct <> "", NewPPBaseAmt*NewCat4Pct/100, 0) -> 0 | BY42: 4743556.46 | BZ42: 0 | CA42: 0 | CB42: 0 | CC42: 0 | CD42: 0 | CE42: 0 | CG42: 4743556.46 | CI42: 716.5363075 | CJ42: 0.01450345598 | CK42: 4143135.002 | CL42: -600421.4579 | CM42: -0.1265762225 | DC42: Lucy Laney @ Cleveland Park | DF42: 6540850.22 | DH42: -306464.9088 | DJ42: -0.04685398664 | DK42: -0.04685398664 | DL42: -0.04685398664
A43: Anthony Middle School | B43: FALSE | C43: 866 | D43: 5804423 | E43: 4730703.47 | F43: 5462.706085 | G43: -0.05524989043 | H43: 313 | I43: 467628.24 | J43: 1494.019936 | K43: -0.5000077269 | L43: 89 | M43: 81610 | N43: 916.9662921 | O43: -0.1169609776 | P43: 106 | Q43: 524481.29 | R43: 4947.936698 | S43: -0.2823964665 | AB43: 6765928.853 | AC43: 5804423 | AD43: 0.7421347552 | AE43: -0.1421099562 | AF43: -961505.8532 | AG43: 0.8578900438 | AP43: -0.2131649343 | AQ43: -0.1656505484 | AT43: Lake Harriet Lower Elementary | AW43: 2692498 | AY43: 137622.0015 | BA43: 0.05386641134 | BB43: 1.053866411 | BC43: =IF(BA43="",100,BA43) -> 0.05386641134 | BW43: NewPPCat5Amt | BY43: 5804423 | BZ43: 0 | CA43: 0 | CB43: 0 | CC43: 0 | CD43: 0 | CE43: 0 | CG43: 5804423 | CI43: 1170.136545 | CJ43: 0.02368480662 | CK43: 6765928.853 | CL43: 961505.8532 | CM43: 0.1656505484 | DC43: Lake Harriet Lower Elementary | DF43: 2692498 | DH43: -137622.0015 | DJ43: -0.05111313043 | DK43: -0.05111313043 | DL43: -0.05111313043
A44: Anwatin Middle School | B44: FALSE | C44: 547 | D44: 5689693 | E44: 3405484.19 | F44: 6225.748062 | G44: 0.07671474026 | H44: 434 | I44: 1421552.38 | J44: 3275.466313 | K44: 0.09617536412 | L44: 160 | M44: 138577 | N44: 866.10625 | O44: -0.165939225 | P44: 97 | Q44: 724079.43 | R44: 7464.736392 | S44: 0.0826171672 | AB44: 5294647.055 | AC44: 5689693 | AD44: 1.151709942 | AE44: 0.07461232835 | AF44: 395045.9446 | AG44: 1.074612328 | AP44: 0.07461232835 | AQ44: 0.06943185592 | AT44: Kenny Elementary | AW44: 3094032 | AY44: 160375.159 | BA44: 0.05466732059 | BB44: 1.054667321 | BC44: =IF(BA44="",100,BA44) -> 0.05466732059 | BW44: =IF(NewCat5Pct <> "", NewPPBaseAmt*NewCat5Pct/100, 0) -> 0 | BY44: 5689693 | BZ44: 0 | CA44: 0 | CB44: 0 | CC44: 0 | CD44: 0 | CE44: 0 | CG44: 5689693 | CI44: 915.6850666 | CJ44: 0.01853443841 | CK44: 5294647.055 | CL44: -395045.9446 | CM44: -0.06943185592 | DC44: Kenny Elementary | DF44: 3094032 | DH44: -160375.159 | DJ44: -0.05183371052 | DK44: -0.05183371052 | DL44: -0.05183371052
A45: SPAN | B45: FALSE | C45: 191 | D45: 4053973.52 | E45: 646167.44 | F45: 3383.075602 | G45: -0.4149125002 | H45: 188 | I45: 411734.44 | J45: 2190.076809 | K45: -0.2670636748 | L45: 30 | M45: 0 | N45: 0 | O45: -1 | P45: 191 | Q45: 2996071.64 | R45: 15686.23895 | S45: 1.274988786 | AB45: 3014268.407 | AC45: 4053973.52 | AD45: 2.350115186 | AE45: 0.3449278475 | AF45: 1039705.113 | AG45: 1.344927847 | AP45: 0.3449278475 | AQ45: 0.2564656893 | AT45: Anwatin Middle School | AW45: 5689693 | AY45: 395045.9446 | BA45: 0.07461232835 | BB45: 1.074612328 | BC45: =IF(BA45="",100,BA45) -> 0.07461232835 | BW45: NonExcludedKids | BY45: 4053973.52 | BZ45: 0 | CA45: 0 | CB45: 0 | CC45: 0 | CD45: 0 | CE45: 0 | CG45: 4053973.52 | CI45: 521.303977 | CJ45: 0.01055174624 | CK45: 3014268.407 | CL45: -1039705.113 | CM45: -0.2564656893 | DC45: Anwatin Middle School | DF45: 5689693 | DH45: -395045.9446 | DJ45: -0.06943185592 | DK45: -0.06943185592 | DL45: -0.06943185592
A46: Northeast Middle | B46: FALSE | C46: 518 | D46: 5308927 | E46: 3699936.41 | F46: 7142.734382 | G46: 0.2353033432 | H46: 418 | I46: 1169385.56 | J46: 2797.57311 | K46: -0.06375751445 | L46: 72 | M46: 96531 | N46: 1340.708333 | O46: 0.2911028313 | P46: 89 | Q46: 343074.03 | R46: 3854.764382 | S46: -0.4409401918 | AB46: 4932613.015 | AC46: 5308927 | AD46: 1.134798106 | AE46: 0.07629100118 | AF46: 376313.9853 | AG46: 1.076291001 | AP46: 0.07629100118 | AQ46: 0.07088324728 | AT46: Northeast Middle | AW46: 5308927 | AY46: 376313.9853 | BA46: 0.07629100118 | BB46: 1.076291001 | BC46: =IF(BA46="",100,BA46) -> 0.07629100118 | BW46: =C2-BZ2 -> 31630 | BY46: 5308927 | BZ46: 0 | CA46: 0 | CB46: 0 | CC46: 0 | CD46: 0 | CE46: 0 | CG46: 5308927 | CI46: 853.07293 | CJ46: 0.01726710226 | CK46: 4932613.015 | CL46: -376313.9853 | CM46: -0.07088324728 | DC46: Northeast Middle | DF46: 5308927 | DH46: -376313.9853 | DJ46: -0.07088324728 | DK46: -0.07088324728 | DL46: -0.07088324728
A47: Olson Middle | B47: FALSE | C47: 347 | D47: 4173641 | E47: 2320131.73 | F47: 6686.258588 | G47: 0.1563579359 | H47: 326 | I47: 1062762.49 | J47: 3260.007638 | K47: 0.09100192699 | L47: 50 | M47: 42662 | N47: 853.24 | O47: -0.1783294305 | P47: 94 | Q47: 748084.78 | R47: 7958.348723 | S47: 0.1542061901 | AB47: 3680588.123 | AC47: 4173641 | AD47: 1.331763855 | AE47: 0.1339603509 | AF47: 493052.8765 | AG47: 1.133960351 | AP47: 0.1339603509 | AQ47: 0.1181349514 | AT47: Pratt Elementary | AW47: 1864967.51 | AY47: 137956.9885 | BA47: 0.07988196178 | BB47: 1.079881962 | BC47: =IF(BA47="",100,BA47) -> 0.07988196178 | BW47: NonExclCat1 | BY47: 4173641 | BZ47: 0 | CA47: 0 | CB47: 0 | CC47: 0 | CD47: 0 | CE47: 0 | CG47: 4173641 | CI47: 636.5409338 | CJ47: 0.01288426465 | CK47: 3680588.123 | CL47: -493052.8765 | CM47: -0.1181349514 | DC47: Pratt Elementary | DF47: 1864967.51 | DH47: -137956.9885 | DJ47: -0.07397286427 | DK47: -0.07397286427 | DL47: -0.07397286427
A48: Sanford Middle | B48: FALSE | C48: 642 | D48: 5603067 | E48: 4072411.49 | F48: 6343.320078 | G48: 0.09704828429 | H48: 402 | I48: 1077788.4 | J48: 2681.065672 | K48: -0.1027481715 | L48: 123 | M48: 156772 | N48: 1274.569106 | O48: 0.2274107202 | P48: 105 | Q48: 296095.11 | R48: 2819.953429 | S48: -0.5910197183 | AB48: 5765073.581 | AC48: 5603067 | AD48: 0.9663454275 | AE48: -0.02810138997 | AF48: -162006.5809 | AG48: 0.97189861 | AP48: -0.04215208496 | AQ48: -0.02891391106 | AT48: Jefferson Elementary | AW48: 7377864.54 | AY48: 569869.1284 | BA48: 0.08370586259 | BB48: 1.083705863 | BC48: =IF(BA48="",100,BA48) -> 0.08370586259 | BW48: =H2-CA2 -> 20314 | BY48: 5603067 | BZ48: 0 | CA48: 0 | CB48: 0 | CC48: 0 | CD48: 0 | CE48: 0 | CG48: 5603067 | CI48: 997.0431892 | CJ48: 0.02018121323 | CK48: 5765073.581 | CL48: 162006.5809 | CM48: 0.02891391106 | DC48: Jefferson Elementary | DF48: 7377864.54 | DH48: -569869.1284 | DJ48: -0.07724038919 | DK48: -0.07724038919 | DL48: -0.07724038919
A49: Edison Senior High | B49: FALSE | C49: 830 | D49: 10907358 | E49: 6333388.44 | F49: 7630.588482 | G49: 0.3196754853 | H49: 768 | I49: 2631619.48 | J49: 3426.587865 | K49: 0.1467500627 | L49: 158 | M49: 140654 | N49: 890.2151899 | O49: -0.1427223032 | P49: 203 | Q49: 1801696.08 | R49: 8875.350148 | S49: 0.2871996988 | AB49: 8657824.079 | AC49: 10907358 | AD49: 1.45506731 | AE49: 0.2598267071 | AF49: 2249533.921 | AG49: 1.259826707 | AP49: 0.2598267071 | AQ49: 0.2062400373 | AT49: Wellstone International High | AW49: 1335614 | AY49: 122445.5919 | BA49: 0.1009304158 | BB49: 1.100930416 | BC49: =IF(BA49="",100,BA49) -> 0.1009304158 | BW49: NonExclCat2 | BY49: 10907358 | BZ49: 0 | CA49: 0 | CB49: 0 | CC49: 0 | CD49: 0 | CE49: 0 | CG49: 10907358 | CI49: 1497.331198 | CJ49: 0.03030757395 | CK49: 8657824.079 | CL49: -2249533.921 | CM49: -0.2062400373 | DC49: Wellstone International High | DF49: 1335614 | DH49: -122445.5919 | DJ49: -0.09167737977 | DK49: -0.09167737977 | DL49: -0.09167737977
A50: Henry Senior High | B50: FALSE | C50: 1108 | D50: 10843291 | E50: 6916208.7 | F50: 6242.065614 | G50: 0.0795367864 | H50: 986 | I50: 3300559.17 | J50: 3347.423093 | K50: 0.1202565916 | L50: 183 | M50: 144133 | N50: 787.6120219 | O50: -0.241529208 | P50: 161 | Q50: 482390.13 | R50: 2996.211988 | S50: -0.5654567872 | AB50: 10653037.19 | AC50: 10843291 | AD50: 1.083584941 | AE50: 0.01785911404 | AF50: 190253.8061 | AG50: 1.017859114 | AP50: 0.01785911404 | AQ50: 0.01754576227 | AT50: Sullivan Elementary | AW50: 6602096.59 | AY50: 606067.0877 | BA50: 0.1010780697 | BB50: 1.10107807 | BC50: =IF(BA50="",100,BA50) -> 0.1010780697 | BW50: =L2-CB2 -> 7332 | BY50: 10843291 | BZ50: 0 | CA50: 0 | CB50: 0 | CC50: 0 | CD50: 0 | CE50: 0 | CG50: 10843291 | CI50: 1842.394209 | CJ50: 0.03729201582 | CK50: 10653037.19 | CL50: -190253.8061 | CM50: -0.01754576227 | DC50: Sullivan Elementary | DF50: 6602096.59 | DH50: -606067.0877 | DJ50: -0.09179918522 | DK50: -0.09179918522 | DL50: -0.09179918522
A51: North Senior High | B51: FALSE | C51: 223 | D51: 4357958 | E51: 2844224.2 | F51: 12754.36861 | G51: 1.205809896 | H51: 211 | I51: 796535.85 | J51: 3775.051422 | K51: 0.2633677074 | L51: 15 | M51: 63484 | N51: 4232.266667 | O51: 3.07567503 | P51: 52 | Q51: 653713.95 | R51: 12571.42212 | S51: 0.823244209 | AB51: 2294030.835 | AC51: 4357958 | AD51: 2.163813299 | AE51: 0.8996946044 | AF51: 2063927.165 | AG51: 1.899694604 | AP51: 0.8996946044 | AQ51: 0.4735995998 | AT51: Olson Middle | AW51: 4173641 | AY51: 493052.8765 | BA51: 0.1339603509 | BB51: 1.133960351 | BC51: =IF(BA51="",100,BA51) -> 0.1339603509 | BW51: NonExclCat3 | BY51: 4357958 | BZ51: 0 | CA51: 0 | CB51: 0 | CC51: 0 | CD51: 0 | CE51: 0 | CG51: 4357958 | CI51: 396.742173 | CJ51: 0.008030483011 | CK51: 2294030.835 | CL51: -2063927.165 | CM51: -0.4735995998 | DC51: Olson Middle | DF51: 4173641 | DH51: -493052.8765 | DJ51: -0.1181349514 | DK51: -0.1181349514 | DL51: -0.1181349514
A52: Roosevelt Senior High | B52: FALSE | C52: 794 | D52: 10316028 | E52: 5966703.75 | F52: 7514.740239 | G52: 0.29964006 | H52: 706 | I52: 2596119.2 | J52: 3677.222663 | K52: 0.2306281017 | L52: 272 | M52: 316270 | N52: 1162.757353 | O52: 0.1197359434 | P52: 149 | Q52: 1436935.05 | R52: 9643.859396 | S52: 0.3986572589 | AB52: 8010450.068 | AC52: 10316028 | AD52: 1.438578675 | AE52: 0.2878212724 | AF52: 2305577.932 | AG52: 1.287821272 | AP52: 0.2878212724 | AQ52: 0.2234947338 | AT52: Hmong International Academy | AW52: 4743556.46 | AY52: 600421.4579 | BA52: 0.1449195978 | BB52: 1.144919598 | BC52: =IF(BA52="",100,BA52) -> 0.1449195978 | BW52: =P2-CC2 -> 4998 | BY52: 10316028 | BZ52: 0 | CA52: 0 | CB52: 0 | CC52: 0 | CD52: 0 | CE52: 0 | CG52: 10316028 | CI52: 1385.370815 | CJ52: 0.02804137686 | CK52: 8010450.068 | CL52: -2305577.932 | CM52: -0.2234947338 | DC52: Hmong International Academy | DF52: 4743556.46 | DH52: -600421.4579 | DJ52: -0.1265762225 | DK52: -0.1265762225 | DL52: -0.1265762225
A53: South Senior High | B53: FALSE | C53: 1844 | D53: 14761279 | E53: 11127276.35 | F53: 6034.314723 | G53: 0.04360721719 | H53: 931 | I53: 1876785.13 | J53: 2015.880913 | K53: -0.3253604884 | L53: 190 | M53: 98861 | N53: 520.3210526 | O53: -0.4989305522 | P53: 211 | Q53: 1658356.52 | R53: 7859.509573 | S53: 0.1398714628 | AB53: 15096393 | AC53: 14761279 | AD53: 0.8863488397 | AE53: -0.02219828277 | AF53: -335114.0006 | AG53: 0.9778017172 | AP53: -0.03329742415 | AQ53: -0.02270223336 | AT53: Bethune Elementary | AW53: 4590455.9 | AY53: 655012.2873 | BA53: 0.166439251 | BB53: 1.166439251 | BC53: =IF(BA53="",100,BA53) -> 0.166439251 | BW53: NonExclCat4 | BY53: 14761279 | BZ53: 0 | CA53: 0 | CB53: 0 | CC53: 0 | CD53: 0 | CE53: 0 | CG53: 14761279 | CI53: 2610.852336 | CJ53: 0.05284642458 | CK53: 15096393 | CL53: 335114.0006 | CM53: 0.02270223336 | DC53: Bethune Elementary | DF53: 4590455.9 | DH53: -655012.2873 | DJ53: -0.1426900294 | DK53: -0.1426900294 | DL53: -0.1426900294
A54: Wellstone International High | B54: FALSE | C54: 124 | D54: 1335614 | E54: 934877.72 | F54: 7539.336452 | G54: 0.3038938627 | H54: 121 | I54: 287187.28 | J54: 2373.448595 | K54: -0.2056960356 | L54: 123 | M54: 113549 | N54: 923.1626016 | O54: -0.1109939283 | P54: 1 | Q54: 0 | R54: 0 | S54: -1 | AB54: 1213168.408 | AC54: 1335614 | AD54: 1.192616699 | AE54: 0.1009304158 | AF54: 122445.5919 | AG54: 1.100930416 | AP54: 0.1009304158 | AQ54: 0.09167737977 | AT54: Dowling Elementary | AW54: 4703209 | AY54: 866545.1054 | BA54: 0.2258590091 | BB54: 1.225859009 | BC54: =IF(BA54="",100,BA54) -> 0.2258590091 | BW54: =T2-CD2 -> 0 | BY54: 1335614 | BZ54: 0 | CA54: 0 | CB54: 0 | CC54: 0 | CD54: 0 | CE54: 0 | CG54: 1335614 | CI54: 209.8119446 | CJ54: 0.004246816626 | CK54: 1213168.408 | CL54: -122445.5919 | CM54: -0.09167737977 | DC54: Dowling Elementary | DF54: 4703209 | DH54: -866545.1054 | DJ54: -0.1842455025 | DK54: -0.1842455025 | DL54: -0.1842455025
A55: Southwest Senior High | B55: FALSE | C55: 1723 | D55: 12075189 | E55: 10322502.98 | F55: 5991.005792 | G55: 0.03611713501 | H55: 619 | I55: 550626 | J55: 889.5411955 | K55: -0.7023040231 | L55: 134 | M55: 110700 | N55: 826.119403 | O55: -0.2044465797 | P55: 182 | Q55: 1091360.02 | R55: 5996.483626 | S55: -0.1303247997 | AB55: 13206358.52 | AC55: 12075189 | AD55: 0.7759795355 | AE55: -0.08565340105 | AF55: -1131169.523 | AG55: 0.9143465989 | AP55: -0.1284801016 | AQ55: -0.0936771692 | AT55: Edison Senior High | AW55: 10907358 | AY55: 2249533.921 | BA55: 0.2598267071 | BB55: 1.259826707 | BC55: =IF(BA55="",100,BA55) -> 0.2598267071 | BW55: NonExclCat5 | BY55: 12075189 | BZ55: 0 | CA55: 0 | CB55: 0 | CC55: 0 | CD55: 0 | CE55: 0 | CG55: 12075189 | CI55: 2283.97949 | CJ55: 0.04623017098 | CK55: 13206358.52 | CL55: 1131169.523 | CM55: 0.0936771692 | DC55: Edison Senior High | DF55: 10907358 | DH55: -2249533.921 | DJ55: -0.2062400373 | DK55: -0.2062400373 | DL55: -0.2062400373
A56: Washburn Senior High | B56: FALSE | C56: 1162 | D56: 9455604 | E56: 7005459.89 | F56: 6028.795086 | G56: 0.04265262107 | H56: 590 | I56: 1425788.16 | J56: 2416.590102 | K56: -0.1912581962 | L56: 174 | M56: 128676 | N56: 739.5172414 | O56: -0.287844507 | P56: 172 | Q56: 895679.95 | R56: 5207.44157 | S56: -0.2447602508 | AB56: 9848492.454 | AC56: 9455604 | AD56: 0.9009999275 | AE56: -0.03989325833 | AF56: -392888.4536 | AG56: 0.9601067417 | AP56: -0.05983988749 | AQ56: -0.04155085741 | AT56: Roosevelt Senior High | AW56: 10316028 | AY56: 2305577.932 | BA56: 0.2878212724 | BB56: 1.287821272 | BC56: =IF(BA56="",100,BA56) -> 0.2878212724 | BW56: =X2-CE2 -> 0 | BY56: 9455604 | BZ56: 0 | CA56: 0 | CB56: 0 | CC56: 0 | CD56: 0 | CE56: 0 | CG56: 9455604 | CI56: 1703.251864 | CJ56: 0.03447562697 | CK56: 9848492.454 | CL56: 392888.4536 | CM56: 0.04155085741 | DC56: Roosevelt Senior High | DF56: 10316028 | DH56: -2305577.932 | DJ56: -0.2234947338 | DK56: -0.2234947338 | DL56: -0.2234947338
B57: FALSE | AT57: SPAN | AW57: 4053973.52 | AY57: 1039705.113 | BA57: 0.3449278475 | BB57: 1.344927847 | BC57: =IF(BA57="",100,BA57) -> 0.3449278475 | BY57: 0 | BZ57: 0 | CA57: 0 | CB57: 0 | CC57: 0 | CD57: 0 | CE57: 0 | DC57: SPAN | DF57: 4053973.52 | DH57: -1039705.113 | DJ57: -0.2564656893 | DK57: -0.2564656893 | DL57: -0.2564656893
AT58: Cityview Pam Magnet | AW58: 3541557 | AY58: 1626674.332 | BA58: 0.8494903419 | BB58: 1.849490342 | BC58: =IF(BA58="",100,BA58) -> 0.8494903419 | BY58: 0 | BZ58: 0 | CA58: 0 | CB58: 0 | CC58: 0 | CD58: 0 | CE58: 0 | DC58: Cityview Pam Magnet | DF58: 3541557 | DH58: -1626674.332 | DJ58: -0.4593105044 | DK58: -0.4593105044 | DL58: -0.4593105044
AT59: North Senior High | AW59: 4357958 | AY59: 2063927.165 | BA59: 0.8996946044 | BB59: 1.899694604 | BC59: =IF(BA59="",100,BA59) -> 0.8996946044 | BY59: 0 | BZ59: 0 | CA59: 0 | CB59: 0 | CC59: 0 | CD59: 0 | CE59: 0 | DC59: North Senior High | DF59: 4357958 | DH59: -2063927.165 | DJ59: -0.4735995998 | DK59: -0.4735995998 | DL59: -0.4735995998
BC60: =IF(BA60="",100,BA60) -> 100 | BY60: 0 | BZ60: 0 | CA60: 0 | CB60: 0 | CC60: 0 | CD60: 0 | CE60: 0 | DL60: -100
BC61: =IF(BA61="",100,BA61) -> 100 | BY61: 0 | BZ61: 0 | CA61: 0 | CB61: 0 | CC61: 0 | CD61: 0 | CE61: 0 | DL61: -100
BC62: =IF(BA62="",100,BA62) -> 100 | BY62: 0 | BZ62: 0 | CA62: 0 | CB62: 0 | CC62: 0 | CD62: 0 | CE62: 0 | DL62: -100
BC63: =IF(BA63="",100,BA63) -> 100 | BY63: 0 | BZ63: 0 | CA63: 0 | CB63: 0 | CC63: 0 | CD63: 0 | CE63: 0 | DL63: -100
BC64: =IF(BA64="",100,BA64) -> 100 | BY64: 0 | BZ64: 0 | CA64: 0 | CB64: 0 | CC64: 0 | CD64: 0 | CE64: 0 | DL64: -100
BC65: =IF(BA65="",100,BA65) -> 100 | BY65: 0 | BZ65: 0 | CA65: 0 | CB65: 0 | CC65: 0 | CD65: 0 | CE65: 0 | DL65: -100
BC66: =IF(BA66="",100,BA66) -> 100 | BY66: =D66 -> 0 | BZ66: 0 | CA66: 0 | CB66: 0 | CC66: 0 | CD66: 0 | CE66: 0 | DL66: -100
F67: =IF(E67<>"",E67/C67,"") ->  | AB67: =IF(A67<>"",C67*F$2+H67*J$2+L67*N$2+P67*R$2+T67*V$2+X67+Z$2,"") ->  | AD67: =IF(AC67<>"",(AC67/C67)/(AC$2/C$2),"") ->  | BC67: =IF(BA67="",100,BA67) -> 100 | BY67: 0 | BZ67: =IF(B67=TRUE,C67,0) -> 0 | CA67: 0 | CB67: 0 | CC67: 0 | CD67: 0 | CE67: 0 | CF67: =IF(B67=TRUE,D67,"") ->  | CG67: =IF(A67<>"",IF(CF67<>"","",D67),"") ->  | CI67: =IF(CG67<>"",(C67*100+H67*NewCat1Pct+L67*NewCat2Pct+P67*NewCat3Pct+T67*NewCat4Pct+X67*NewCat5Pct)/100,"") ->  | CK67: =IF(CJ67="",CF67,IF(C67<>"",TotFreePlusNew*CJ67,"")) ->  | DL67: -100
K68: =IF(J68<>"",J68/J$2-1,"") ->  | N68: =IF(AND(M68<>"", L68<>"",L68<>0),M68/L68,"") ->  | O68: =IF(N68<>"",N68/N$2-1,"") ->  | R68: =IF(AND(Q68<>"", P68<>"",P68<>0),Q68/P68,"") ->  | S68: =IF(R68<>"",R68/R$2-1,"") ->  | AC68: =IF(D68<>"",D68,"") ->  | AF68: =IF(AB68<>"",AC68-AB68,"") ->  | AG68: =IF(AC68<>"",AC68/AB68,"") ->  | AP68: =IF(AE68<0,AE68*1.5,AE68) ->  | AQ68: =IF(AF68<>"",AF68/AC68,"") ->  | BC68: =IF(BA68="",100,BA68) -> 100 | BY68: 0 | BZ68: 0 | CA68: =IF(B68=TRUE,H68,0) -> 0 | CB68: =IF(B68=TRUE,L68,0) -> 0 | CC68: =IF(B68=TRUE,P68,0) -> 0 | CD68: =IF(B68=TRUE,T68,0) -> 0 | CE68: =IF(B68=TRUE,X68,0) -> 0 | CJ68: =IF(CI68<>"",CI68/CI$2,"") ->  | CL68: =IF(C68<>"",CK68-D68,"") ->  | CM68: =IF(C68<>"",CL68/D68,"") ->  | DA68: =IF(B68= TRUE,"X","") ->  | DL68: -100
BC69: =IF(BA69="",100,BA69) -> 100 | BY69: 0 | BZ69: 0 | CA69: 0 | CB69: 0 | CC69: 0 | CD69: 0 | CE69: 0 | DL69: -100
BC70: =IF(BA70="",100,BA70) -> 100 | BY70: 0 | BZ70: 0 | CA70: 0 | CB70: 0 | CC70: 0 | CD70: 0 | CE70: 0 | DL70: =IF(DJ70="",-100,DJ70) -> -100
BC71: =IF(BA71="",100,BA71) -> 100 | BY71: 0 | BZ71: 0 | CA71: 0 | CB71: 0 | CC71: 0 | CD71: 0 | CE71: 0 | DL71: -100
BC72: =IF(BA72="",100,BA72) -> 100 | BY72: 0 | BZ72: 0 | CA72: 0 | CB72: 0 | CC72: 0 | CD72: 0 | CE72: 0 | DL72: -100
BC73: =IF(BA73="",100,BA73) -> 100 | BY73: 0 | BZ73: 0 | CA73: 0 | CB73: 0 | CC73: 0 | CD73: 0 | CE73: 0 | DL73: -100
BC74: =IF(BA74="",100,BA74) -> 100 | BY74: 0 | BZ74: 0 | CA74: 0 | CB74: 0 | CC74: 0 | CD74: 0 | CE74: 0 | DL74: -100
BC75: =IF(BA75="",100,BA75) -> 100 | BY75: 0 | BZ75: 0 | CA75: 0 | CB75: 0 | CC75: 0 | CD75: 0 | CE75: 0 | DL75: -100
BC76: =IF(BA76="",100,BA76) -> 100 | BY76: 0 | BZ76: 0 | CA76: 0 | CB76: 0 | CC76: 0 | CD76: 0 | CE76: 0 | DL76: -100
BC77: =IF(BA77="",100,BA77) -> 100 | BY77: 0 | BZ77: 0 | CA77: 0 | CB77: 0 | CC77: 0 | CD77: 0 | CE77: 0 | DL77: -100
BC78: =IF(BA78="",100,BA78) -> 100 | BY78: 0 | BZ78: 0 | CA78: 0 | CB78: 0 | CC78: 0 | CD78: 0 | CE78: 0 | DL78: -100
BC79: =IF(BA79="",100,BA79) -> 100 | BY79: 0 | BZ79: 0 | CA79: 0 | CB79: 0 | CC79: 0 | CD79: 0 | CE79: 0 | DL79: -100
BC80: =IF(BA80="",100,BA80) -> 100 | BY80: 0 | BZ80: 0 | CA80: 0 | CB80: 0 | CC80: 0 | CD80: 0 | CE80: 0 | DL80: -100
BC81: =IF(BA81="",100,BA81) -> 100 | BY81: 0 | BZ81: 0 | CA81: 0 | CB81: 0 | CC81: 0 | CD81: 0 | CE81: 0 | DL81: -100
E82: =IF(D82<>"", D82-I82-M82-Q82-U82-Y82,"") ->  | G82: =IF(F82<>"",F82/F$2-1,"") ->  | J82: =IF(AND(I82<>"", H82<>"",H82<>0),I82/H82,"") ->  | V82: =IF(AND(U82<>"", T82<>"",T82<>0),U82/T82,"") ->  | W82: =IF(V82<>"",V82/V$2-1,"") ->  | Z82: =IF(AND(Y82<>"", X82<>"",X82<>0),Y82/X82,"") ->  | AA82: =IF(Z82<>"",Z82/Z$2-1,"") ->  | AE82: =IF(AC82<>"",AC82/AB82-1,"") ->  | BC82: =IF(BA82="",100,BA82) -> 100 | BY82: 0 | BZ82: 0 | CA82: 0 | CB82: 0 | CC82: 0 | CD82: 0 | CE82: 0 | DL82: -100
BC83: =IF(BA83="",100,BA83) -> 100 | BY83: 0 | BZ83: 0 | CA83: 0 | CB83: 0 | CC83: 0 | CD83: 0 | CE83: 0 | DL83: -100
BC84: =IF(BA84="",100,BA84) -> 100 | BY84: 0 | BZ84: 0 | CA84: 0 | CB84: 0 | CC84: 0 | CD84: 0 | CE84: 0 | DL84: -100
BC85: =IF(BA85="",100,BA85) -> 100 | BY85: 0 | BZ85: 0 | CA85: 0 | CB85: 0 | CC85: 0 | CD85: 0 | CE85: 0 | DL85: -100
BC86: =IF(BA86="",100,BA86) -> 100 | BY86: 0 | BZ86: 0 | CA86: 0 | CB86: 0 | CC86: 0 | CD86: 0 | CE86: 0 | DL86: -100
BC87: =IF(BA87="",100,BA87) -> 100 | BY87: 0 | BZ87: 0 | CA87: 0 | CB87: 0 | CC87: 0 | CD87: 0 | CE87: 0 | DL87: -100
BC88: =IF(BA88="",100,BA88) -> 100 | BY88: 0 | BZ88: 0 | CA88: 0 | CB88: 0 | CC88: 0 | CD88: 0 | CE88: 0 | DL88: -100
BC89: =IF(BA89="",100,BA89) -> 100 | BY89: 0 | BZ89: 0 | CA89: 0 | CB89: 0 | CC89: 0 | CD89: 0 | CE89: 0 | DL89: -100
BC90: =IF(BA90="",100,BA90) -> 100 | BY90: 0 | BZ90: 0 | CA90: 0 | CB90: 0 | CC90: 0 | CD90: 0 | CE90: 0 | DL90: -100
BC91: =IF(BA91="",100,BA91) -> 100 | BY91: 0 | BZ91: 0 | CA91: 0 | CB91: 0 | CC91: 0 | CD91: 0 | CE91: 0 | DL91: -100
BC92: =IF(BA92="",100,BA92) -> 100 | BY92: 0 | BZ92: 0 | CA92: 0 | CB92: 0 | CC92: 0 | CD92: 0 | CE92: 0 | DL92: -100
BC93: =IF(BA93="",100,BA93) -> 100 | BY93: 0 | BZ93: 0 | CA93: 0 | CB93: 0 | CC93: 0 | CD93: 0 | CE93: 0 | DL93: -100
BC94: =IF(BA94="",100,BA94) -> 100 | BY94: 0 | BZ94: 0 | CA94: 0 | CB94: 0 | CC94: 0 | CD94: 0 | CE94: 0 | DL94: -100
BC95: =IF(BA95="",100,BA95) -> 100 | BY95: 0 | BZ95: 0 | CA95: 0 | CB95: 0 | CC95: 0 | CD95: 0 | CE95: 0 | DL95: -100
BC96: =IF(BA96="",100,BA96) -> 100 | BY96: 0 | BZ96: 0 | CA96: 0 | CB96: 0 | CC96: 0 | CD96: 0 | CE96: 0 | DL96: -100
BC97: =IF(BA97="",100,BA97) -> 100 | BY97: 0 | BZ97: 0 | CA97: 0 | CB97: 0 | CC97: 0 | CD97: 0 | CE97: 0 | DL97: -100
BC98: =IF(BA98="",100,BA98) -> 100 | BY98: 0 | BZ98: 0 | CA98: 0 | CB98: 0 | CC98: 0 | CD98: 0 | CE98: 0 | DL98: -100
F99: =IF(E99<>"",E99/C99,"") ->  | AD99: =IF(AC99<>"",(AC99/C99)/(AC$2/C$2),"") ->  | BC99: =IF(BA99="",100,BA99) -> 100 | BY99: 0 | BZ99: 0 | CA99: 0 | CB99: 0 | CC99: 0 | CD99: 0 | CE99: 0 | CG99: =IF(A99<>"",IF(CF99<>"","",D99),"") ->  | CK99: =IF(CJ99="",CF99,IF(C99<>"",TotFreePlusNew*CJ99,"")) ->  | DL99: -100
BC100: =IF(BA100="",100,BA100) -> 100 | BY100: 0 | BZ100: 0 | CA100: 0 | CB100: 0 | CC100: 0 | CD100: 0 | CE100: 0 | DL100: -100
BC101: =IF(BA101="",100,BA101) -> 100 | BY101: 0 | BZ101: 0 | CA101: 0 | CB101: 0 | CC101: 0 | CD101: 0 | CE101: 0 | DL101: -100
AF102: =IF(AB102<>"",AB102-AC102,"") ->  | BC102: =IF(BA102="",100,BA102) -> 100 | BY102: 0 | BZ102: 0 | CA102: 0 | CB102: 0 | CC102: 0 | CD102: 0 | CE102: 0 | DL102: -100
BC103: =IF(BA103="",100,BA103) -> 100 | DL103: -100
BC104: =IF(BA104="",100,BA104) -> 100 | DL104: -100
BC105: =IF(BA105="",100,BA105) -> 100 | DL105: -100
